College Name,Check Number,Payee,Date,Amount,Funding Source,Purpose
Shelton State CC,78308,Scenario Learning LLC ,10/2/2020,"9,335.00 ",Unrestricted Shared Services,Subscriptions - OOS
Shelton State CC,78310,White Kimberly,10/2/2020,104.00 ,Pharmacy Tech-The Women's Fund,Institutional Use - OOS
Shelton State CC,78311,State of Alabama ,10/5/2020,50.00 ,SNAP 2XX8-2XX9,Institutional Use - OOS
Shelton State CC,78312,State of Alabama ,10/7/2020,300.00 ,Unrestricted Shared Services,Subscriptions - OOS
Shelton State CC,78313,Goodwyn Mills & Cawood Inc ,10/7/2020,"2,550.89 ",Title III B X8-X9,Construction in Progress - CE
Shelton State CC,78314,Teacher's Retirement Systems of Alabama ,10/8/2020,746.67 ,Unrestricted Shared Services,Group Health Insurance - FB
Shelton State CC,78314,Teacher's Retirement Systems of Alabama ,10/8/2020,"1,626.67 ",Unrestricted-Martin Campus,Group Health Insurance - FB
Shelton State CC,78314,Teacher's Retirement Systems of Alabama ,10/8/2020,"4,400.00 ",Unrestricted Distance Ed,Group Health Insurance - FB
Shelton State CC,78315,State of Alabama ,10/8/2020,"137,801.00 ",Unrestricted Shared Services,Insurance and Bonding - PS
Shelton State CC,78320,WEX Bank ,10/12/2020,17.57 ,Unrestricted-Fredd Campus,Materials and Supplies - MS
Shelton State CC,78320,WEX Bank ,10/12/2020,17.57 ,Unrestricted-Martin Campus,Materials and Supplies - MS
Shelton State CC,78320,WEX Bank ,10/12/2020,30.32 ,Unrestricted-Fredd Campus,Gasoline & Oil - Motor Veh - OOS
Shelton State CC,78320,WEX Bank ,10/12/2020,70.28 ,Unrestricted Shared Services,Materials and Supplies - MS
Shelton State CC,78320,WEX Bank ,10/12/2020,763.79 ,Unrestricted Shared Services,Gasoline & Oil - Motor Veh - OOS
Shelton State CC,78320,WEX Bank ,10/12/2020,932.43 ,Unrestricted-Martin Campus,Gasoline & Oil - Motor Veh - OOS
Shelton State CC,78321,Follett Higher Education Group ,10/12/2020,157.00 ,Dual Enrollment Sch. 2XX9-2XX0,Materials and Supplies - MS
Shelton State CC,78322,Tuscaloosa County Commission ,10/13/2020,73.50 ,Unrestricted Shared Services,Institutional Use - OOS
Shelton State CC,78323,5 Degrees Branding LLC ,10/14/2020,150.00 ,Unrestricted Shared Services,Advertising & Promotions - OOS
Shelton State CC,78323,5 Degrees Branding LLC ,10/14/2020,167.08 ,Unrestricted Shared Services,Printing and Binding - OOS
Shelton State CC,78324,Act ,10/14/2020,80.00 ,AE-State Regular 2XX9-2XX0,Other Contractual Services - PS
Shelton State CC,78324,Act ,10/14/2020,192.00 ,Alabama STRONG Initiative 2019-20,Other Contractual Services - PS
Shelton State CC,78324,Act ,10/14/2020,798.00 ,Unrestricted-Martin Campus,Other Contractual Services - PS
Shelton State CC,78325,Al Comm.Col System Presidents Assoc. ,10/14/2020,750.00 ,Unrestricted Shared Services,Memberships - PS
Shelton State CC,78326,Alabama Department Of Revenue ,10/14/2020,48.50 ,Unrestricted Shared Services,Materials and Supplies - MS
Shelton State CC,78327,Alert Services Inc. ,10/14/2020,360.00 ,CARES Act - GEERF Public Health,Materials and Supplies - MS
Shelton State CC,78327,Alert Services Inc. ,10/14/2020,"14,999.00 ",Renewal & Replacement Shared Svcs,Materials and Supplies - MS
Shelton State CC,78328,Alldata ,10/14/2020,"2,632.50 ",CARES Act - HBCU and Strengthening,Subscriptions - OOS
Shelton State CC,78329,Amazon.Com ,10/14/2020,151.98 ,Unrestricted Shared Services,Materials and Supplies - MS
Shelton State CC,78329,Amazon.Com ,10/14/2020,323.50 ,Unrestricted-Martin Campus,Materials and Supplies - MS
Shelton State CC,78329,Amazon.Com ,10/14/2020,366.99 ,Title III B X8-X9,Materials and Supplies - MS
Shelton State CC,78329,Amazon.Com ,10/14/2020,"1,277.54 ",Unrestricted-Fredd Campus,Materials and Supplies - MS
Shelton State CC,78330,American Association Of Community College ,10/14/2020,"6,825.00 ",Unrestricted Shared Services,Memberships - PS
Shelton State CC,78331,Arrow Exterminators ,10/14/2020,265.00 ,Renewal & Replacement Shared Svcs,Maintenance & Repairs  - OOS
Shelton State CC,78332,At&T ,10/14/2020,"2,611.59 ",Unrestricted-Fredd Campus,Landline Phones - UC
Shelton State CC,78332,At&T ,10/14/2020,"4,909.65 ",Unrestricted-Martin Campus,Landline Phones - UC
Shelton State CC,78333,At&T Mobility ,10/14/2020,21.25 ,Unrestricted-Fredd Campus,Internet - UC
Shelton State CC,78333,At&T Mobility ,10/14/2020,203.70 ,Unrestricted-Martin Campus,Internet - UC
Shelton State CC,78333,At&T Mobility ,10/14/2020,497.87 ,Unrestricted Shared Services,Internet - UC
Shelton State CC,78334,Brown Julie,10/14/2020,100.00 ,Unrestricted Shared Services,Honorariums - PS
Shelton State CC,78335,Central Paper Company ,10/14/2020,"2,743.50 ",Unrestricted Shared Services,Materials and Supplies - MS
Shelton State CC,78336,Condensed Curriculum International Inc ,10/14/2020,"17,277.65 ",Pharmacy Tech-The Women's Fund,Other Contractual Services - PS
Shelton State CC,78337,Credentia ,10/14/2020,850.00 ,AE - GED 2XX3-2XX4,Materials and Supplies - MS
Shelton State CC,78338,Dell Marketing ,10/14/2020,622.20 ,CARES Act - HBCU and Strengthening,Materials and Supplies - MS
Shelton State CC,78338,Dell Marketing ,10/14/2020,"26,173.97 ",CARES Act - HBCU and Strengthening,Equipment - non capitalized - MS
Shelton State CC,78339,Department Of Post Secondary Education ,10/14/2020,"148,533.00 ",Unrestricted Shared Services,Institutional Use - OOS
Shelton State CC,78340,Express Oil Change LLC ,10/14/2020,451.88 ,Unrestricted Shared Services,Maintenance & Repairs  - OOS
Shelton State CC,78341,Follett Higher Education Group ,10/14/2020,"1,027.41 ",Unrestricted-Martin Campus,Materials and Supplies - MS
Shelton State CC,78342,Forestry SuppliersInc. ,10/14/2020,492.21 ,Unrestricted Shared Services,Materials and Supplies - MS
Shelton State CC,78343,Glass Kaly,10/14/2020,375.00 ,Unrestricted Shared Services,Advertising & Promotions - OOS
Shelton State CC,78344,Groff Leah,10/14/2020,25.00 ,Unrestricted Shared Services,Honorariums - PS
Shelton State CC,78345,Hargan Consulting LLC ,10/14/2020,"5,355.00 ",Unrestricted Shared Services,Advertising & Promotions - OOS
Shelton State CC,78346,Home Depot U.S.A. Inc. ,10/14/2020,"1,762.97 ",Unrestricted Shared Services,Materials and Supplies - MS
Shelton State CC,78347,IBM ,10/14/2020,265.56 ,Title III B X8-X9,Leases - Interest Payments - OOS
Shelton State CC,78347,IBM ,10/14/2020,539.75 ,Unrestricted Shared Services,Leases - Interest Payments - OOS
Shelton State CC,78347,IBM ,10/14/2020,"2,431.79 ",Title III B X8-X9,Leases - Principal Payments - OOS
Shelton State CC,78347,IBM ,10/14/2020,"4,606.39 ",Unrestricted Shared Services,Leases - Principal Payments - OOS
Shelton State CC,78348,Infinity Concepts ,10/14/2020,"17,160.00 ",Unrestricted Shared Services,Advertising & Promotions - OOS
Shelton State CC,78349,Innovative Interfaces Inc. ,10/14/2020,"1,228.29 ",Unrestricted Shared Services,Other Contractual Services - PS
Shelton State CC,78350,Jackson Security Service ,10/14/2020,111.29 ,Renewal & Replacement-Fredd Campus,Maintenance & Repairs  - OOS
Shelton State CC,78350,Jackson Security Service ,10/14/2020,500.56 ,Renewal & Replacement-Martin Campus,Maintenance & Repairs  - OOS
Shelton State CC,78351,Johnson Controls ,10/14/2020,"1,856.97 ",Renewal & Replacement-Martin Campus,Maintenance & Repairs  - OOS
Shelton State CC,78352,Johnson Controls Fire Protection Lp ,10/14/2020,"1,564.41 ",Renewal & Replacement-Martin Campus,Maintenance & Repairs  - OOS
Shelton State CC,78353,KONE Inc. ,10/14/2020,614.28 ,Renewal & Replacement-Martin Campus,Maintenance & Repairs  - OOS
Shelton State CC,78354,Laketable LLC ,10/14/2020,"2,885.00 ",Unrestricted Shared Services,Advertising & Promotions - OOS
Shelton State CC,78355,Lance Holloway Productions LLC ,10/14/2020,"7,100.00 ",Unrestricted Shared Services,Advertising & Promotions - OOS
Shelton State CC,78356,Layer3 Communications ,10/14/2020,"2,058.00 ",Unrestricted Shared Services,Equipment - non capitalized - MS
Shelton State CC,78357,Lowe's ,10/14/2020,149.44 ,Unrestricted-Martin Campus,Materials and Supplies - MS
Shelton State CC,78358,Msc(Manhattan Supply Corp.) ,10/14/2020,250.00 ,Unrestricted-Martin Campus,Materials and Supplies - MS
Shelton State CC,78358,Msc(Manhattan Supply Corp.) ,10/14/2020,262.84 ,Vocational Ed/CTE X9-X0,Equipment - non capitalized - MS
Shelton State CC,78358,Msc(Manhattan Supply Corp.) ,10/14/2020,444.90 ,Vocational Ed/CTE X9-X0,Materials and Supplies - MS
Shelton State CC,78359,N.C. Morgan Construction Co. Inc. ,10/14/2020,"138,400.75 ",Title III B X8-X9,Construction in Progress - CE
Shelton State CC,78360,Nafsa Publications Center ,10/14/2020,305.00 ,Unrestricted Shared Services,Subscriptions - OOS
Shelton State CC,78361,Netop Tech Inc. ,10/14/2020,"7,830.00 ",Unrestricted Shared Services,Computer Software(non capital) - MS
Shelton State CC,78362,OCLC Online Computer Library Center Inc ,10/14/2020,"18,024.50 ",CARES Act - HBCU and Strengthening,Subscriptions - OOS
Shelton State CC,78363,Office Depot ,10/14/2020,384.86 ,Unrestricted Shared Services,Materials and Supplies - MS
Shelton State CC,78363,Office Depot ,10/14/2020,"1,220.06 ",Unrestricted-Fredd Campus,Materials and Supplies - MS
Shelton State CC,78364,One Diversified LLC ,10/14/2020,55.37 ,Unrestricted Shared Services,Materials and Supplies - MS
Shelton State CC,78364,One Diversified LLC ,10/14/2020,"11,514.15 ",CARES Act - HBCU and Strengthening,Maintenance & Repairs  - OOS
Shelton State CC,78364,One Diversified LLC ,10/14/2020,"26,891.90 ",CARES Act - HBCU and Strengthening,Equipment - non capitalized - MS
Shelton State CC,78364,One Diversified LLC ,10/14/2020,"38,698.10 ",CARES Act - HBCU and Strengthening,Materials and Supplies - MS
Shelton State CC,78365,Parker-Waller & Associates ,10/14/2020,"3,103.75 ",Unrestricted Shared Services,Dep Liab - Foreign Student Ins
Shelton State CC,78366,Pocket Nurse Enterprises Inc. ,10/14/2020,143.98 ,Unrestricted-Fredd Campus,Materials and Supplies - MS
Shelton State CC,78367,PPG Architectural Finishes ,10/14/2020,100.18 ,Unrestricted-Martin Campus,Materials and Supplies - MS
Shelton State CC,78368,Quality Temporary Services Inc. ,10/14/2020,"1,128.90 ",CARES Act - GEERF Public Health,Other Contractual Services - PS
Shelton State CC,78369,RCI Contractors & Engineers Inc ,10/14/2020,"28,624.23 ",Title III B X8-X9,Construction in Progress - CE
Shelton State CC,78370,Rehab Associates LLS ,10/14/2020,"1,875.00 ",CARES Act - GEERF Public Health,Other Contractual Services - PS
Shelton State CC,78371,Ruffalo Noel Levitz LLC ,10/14/2020,300.00 ,Unrestricted Shared Services,Registration Fees- IS
Shelton State CC,78372,Sam'S Club ,10/14/2020,99.96 ,CARES Act - GEERF Public Health,Materials and Supplies - MS
Shelton State CC,78373,Seating Inc. ,10/14/2020,"105,771.34 ",Renewal & Replacement-Martin Campus,Materials and Supplies - MS
Shelton State CC,78374,Smith Alexandra,10/14/2020,"1,473.75 ",Unrestricted Shared Services,Materials and Supplies - MS
Shelton State CC,78375,Smithson Anthony,10/14/2020,"1,155.00 ",Supervisory Training-Lear Corp,Other Contractual Services - PS
Shelton State CC,78375,Smithson Anthony,10/14/2020,"2,750.00 ",Supervisory Training-Schnellecke Pk,Other Contractual Services - PS
Shelton State CC,78376,Snap On Incorporated ,10/14/2020,"1,469.00 ",CARES Act - HBCU and Strengthening,Subscriptions - OOS
Shelton State CC,78377,Southern Linc. ,10/14/2020,59.36 ,Unrestricted-Martin Campus,Landline Phones - UC
Shelton State CC,78378,Spire ,10/14/2020,795.86 ,Unrestricted-Fredd Campus,Gas & Heating Fuel - UC
Shelton State CC,78379,Tennant ,10/14/2020,287.10 ,Unrestricted-Martin Campus,Maintenance & Repairs  - OOS
Shelton State CC,78380,The Board of Trustees of the University of Alabama ,10/14/2020,"1,254.33 ",Unrestricted Shared Services,Printing and Binding - OOS
Shelton State CC,78381,The Board of Trustees of the University of Alabama ,10/14/2020,"4,001.92 ",Unrestricted Shared Services,Advertising & Promotions - OOS
Shelton State CC,78382,The Crimson White ,10/14/2020,"2,776.50 ",Unrestricted Shared Services,Advertising & Promotions - OOS
Shelton State CC,78383,Timilon Corporation ,10/14/2020,"3,232.40 ",CARES Act - GEERF Public Health,Materials and Supplies - MS
Shelton State CC,78384,TRW Electric and Supply Company LLC ,10/14/2020,"7,488.80 ",Renewal & Replacement-Martin Campus,Maintenance & Repairs  - OOS
Shelton State CC,78385,Tuskaloosa Lawn Equipment ,10/14/2020,119.66 ,Unrestricted-Martin Campus,Maintenance & Repairs  - OOS
Shelton State CC,78386,Universal Company Inc ,10/14/2020,"14,900.50 ",Vocational Ed/CTE X9-X0,Equipment - non capitalized - MS
Shelton State CC,78387,WEX Bank ,10/14/2020,19.83 ,Unrestricted-Fredd Campus,Materials and Supplies - MS
Shelton State CC,78387,WEX Bank ,10/14/2020,19.83 ,Unrestricted-Martin Campus,Materials and Supplies - MS
Shelton State CC,78387,WEX Bank ,10/14/2020,19.84 ,Unrestricted Shared Services,Materials and Supplies - MS
Shelton State CC,78387,WEX Bank ,10/14/2020,39.68 ,Unrestricted Shared Services,Cash Shortages - OOS
Shelton State CC,78387,WEX Bank ,10/14/2020,74.62 ,Unrestricted-Fredd Campus,Technology - non capitalized - MS
Shelton State CC,78387,WEX Bank ,10/14/2020,358.59 ,Unrestricted Shared Services,Gasoline & Oil - Motor Veh - OOS
Shelton State CC,78387,WEX Bank ,10/14/2020,"1,118.29 ",Unrestricted-Martin Campus,Gasoline & Oil - Motor Veh - OOS
Shelton State CC,78388,Windstream ,10/14/2020,"1,523.35 ",Unrestricted Shared Services,Landline Phones - UC
Shelton State CC,78389,Xerox Corporation ,10/14/2020,40.69 ,Unrestricted-Martin Campus,Short-Term Equipment Rentals - OOS
Shelton State CC,78389,Xerox Corporation ,10/14/2020,"1,614.45 ",Unrestricted Shared Services,Short-Term Equipment Rentals - OOS
Shelton State CC,78390,Kip Tyner Production ,10/15/2020,500.00 ,Unrestricted Shared Services,Other Contractual Services - PS
Shelton State CC,78421,State of Alabama ,10/19/2020,25.00 ,SNAP 2XX8-2XX9,Institutional Use - OOS
Shelton State CC,78422,Assessment Tech.Institute Inc.(Ati) ,10/19/2020,"2,125.00 ",Unrestricted Shared Services,Miscellaneous Revenue - VIF
Shelton State CC,78423,Eatmon Joseph,10/19/2020,400.00 ,Unrestricted-Martin Campus,Conus (meals) - IS
Shelton State CC,78424,Thompson Madonna,10/19/2020,384.00 ,Unrestricted-Martin Campus,Conus (meals) - IS
Shelton State CC,78425,Thompson Madonna,10/19/2020,384.00 ,Unrestricted-Martin Campus,Conus (meals) - IS
Shelton State CC,78426,Thompson Madonna,10/19/2020,384.00 ,Unrestricted-Martin Campus,Conus (meals) - IS
Shelton State CC,78427,Regions Bank ,10/20/2020,32.39 ,Unrestricted Shared Services,Materials and Supplies - MS
Shelton State CC,78427,Regions Bank ,10/20/2020,88.32 ,Unrestricted Shared Services,Subscriptions - OOS
Shelton State CC,78427,Regions Bank ,10/20/2020,189.40 ,Unrestricted-Martin Campus,Other - Inventory
Shelton State CC,78429,New Readers Press ,10/22/2020,219.00 ,AE-State Regular 2XX9-2XX0,Memberships - PS
Shelton State CC,78430,Oxford University Press ,10/22/2020,132.00 ,AE-Federal IEL/CE 2XX9-2XX0,Materials and Supplies - MS
Shelton State CC,78431,Xerox Corporation ,10/22/2020,258.57 ,AE-State Regular 2XX9-2XX0,Short-Term Equipment Rentals - OOS
Shelton State CC,78432,Amazon.Com ,10/23/2020,133.04 ,Unrestricted-Martin Campus,Materials and Supplies - MS
Shelton State CC,78433,American Osment ,10/23/2020,780.00 ,CARES Act - GEERF Public Health,Materials and Supplies - MS
Shelton State CC,78434,Armstrong Medical Ind.Inc. ,10/23/2020,"3,071.60 ",CARES Act - HBCU and Strengthening,Materials and Supplies - MS
Shelton State CC,78435,Armstrong Medical Ind.Inc. ,10/23/2020,"3,401.76 ",CARES Act - HBCU and Strengthening,Materials and Supplies - MS
Shelton State CC,78436,Arrow Exterminators ,10/23/2020,675.00 ,Renewal & Replacement Shared Svcs,Maintenance & Repairs  - OOS
Shelton State CC,78437,At&T Mobility ,10/23/2020,21.25 ,Unrestricted-Fredd Campus,Internet - UC
Shelton State CC,78437,At&T Mobility ,10/23/2020,203.70 ,Unrestricted-Martin Campus,Internet - UC
Shelton State CC,78437,At&T Mobility ,10/23/2020,440.21 ,Unrestricted Shared Services,Internet - UC
Shelton State CC,78438,CamInstructor Inc. ,10/23/2020,"3,460.00 ",CARES Act - HBCU and Strengthening,Computer Software(non capital) - MS
Shelton State CC,78439,Cengage Learning ,10/23/2020,"2,000.00 ",CARES Act - HBCU and Strengthening,Subscriptions - OOS
Shelton State CC,78440,Comprehensive Sleep Center P.C. ,10/23/2020,"2,000.00 ",Title III B X8-X9,Other Contractual Services - PS
Shelton State CC,78441,Comquip Inc. ,10/23/2020,"10,990.00 ",Unrestricted Shared Services,Computer Software(non capital) - MS
Shelton State CC,78442,Credentials Solutions LLC ,10/23/2020,322.50 ,Unrestricted Shared Services,Materials and Supplies - MS
Shelton State CC,78443,Dell Marketing ,10/23/2020,"8,859.56 ",CARES Act - HBCU and Strengthening,Equipment - non capitalized - MS
Shelton State CC,78444,Digital Architecture ,10/23/2020,"7,598.00 ",Unrestricted Shared Services,Subscriptions - OOS
Shelton State CC,78445,Jacobs Plumbing Company ,10/23/2020,"1,860.00 ",Renewal & Replacement-Martin Campus,Maintenance & Repairs  - OOS
Shelton State CC,78446,Johnson Controls ,10/23/2020,"19,288.00 ",Renewal & Replacement-Martin Campus,Service Contracts on Equipment -OOS
Shelton State CC,78447,Knight Sign Industries Inc. ,10/23/2020,722.00 ,CARES Act - GEERF Public Health,Maintenance & Repairs  - OOS
Shelton State CC,78448,McKnight Lisa,10/23/2020,315.57 ,Unrestricted Shared Services,Institutional Use - OOS
Shelton State CC,78449,Msc(Manhattan Supply Corp.) ,10/23/2020,179.80 ,Mechatronics Apprentship 2XX9-2XX0,Materials and Supplies - MS
Shelton State CC,78449,Msc(Manhattan Supply Corp.) ,10/23/2020,"2,993.03 ",Unrestricted-Martin Campus,Materials and Supplies - MS
Shelton State CC,78450,One Diversified LLC ,10/23/2020,"8,206.69 ",CARES Act - HBCU and Strengthening,Maintenance & Repairs  - OOS
Shelton State CC,78451,Onin Staffling LLC ,10/23/2020,350.43 ,CARES Act - GEERF Public Health,Other Contractual Services - PS
Shelton State CC,78452,Quality Temporary Services Inc. ,10/23/2020,"2,161.95 ",CARES Act - GEERF Public Health,Other Contractual Services - PS
Shelton State CC,78453,Reliable Machine Tool Repair ,10/23/2020,514.76 ,Unrestricted-Martin Campus,Materials and Supplies - MS
Shelton State CC,78454,Sam'S Club ,10/23/2020,3.96 ,Title III B X8-X9,Instructional Materials - MS
Shelton State CC,78455,Spire ,10/23/2020,387.75 ,Unrestricted-Martin Campus,Gas & Heating Fuel - UC
Shelton State CC,78456,The Board of Trustees of the University of Alabama ,10/23/2020,"3,580.00 ",Unrestricted Shared Services,Advertising & Promotions - OOS
Shelton State CC,78457,Tricor Direct Inc ,10/23/2020,617.84 ,Title III B X8-X9,Materials and Supplies - MS
Shelton State CC,78458,Triple Point Industries LLC ,10/23/2020,568.41 ,Renewal & Replacement-Fredd Campus,Service Contracts on Equipment -OOS
Shelton State CC,78458,Triple Point Industries LLC ,10/23/2020,"1,676.88 ",Renewal & Replacement-Martin Campus,Service Contracts on Equipment -OOS
Shelton State CC,78459,United Parcel Serv ,10/23/2020,124.00 ,Unrestricted Shared Services,Freight - OOS
Shelton State CC,78460,Xerox Corporation ,10/23/2020,210.49 ,Unrestricted-Martin Campus,Miscellaneous - AR
Shelton State CC,78460,Xerox Corporation ,10/23/2020,224.46 ,Unrestricted-Fredd Campus,Short-Term Equipment Rentals - OOS
Shelton State CC,78460,Xerox Corporation ,10/23/2020,661.18 ,Unrestricted-Martin Campus,Short-Term Equipment Rentals - OOS
Shelton State CC,78460,Xerox Corporation ,10/23/2020,"2,132.06 ",Unrestricted Shared Services,Short-Term Equipment Rentals - OOS
Shelton State CC,78501,Alabama Community College System ,10/23/2020,"136,693.86 ",Unrestricted Shared Services,Other Contractual Services - PS
Shelton State CC,78502,Central High School ,10/23/2020,433.81 ,Pre-K Meal Payments,Materials and Supplies - MS
Shelton State CC,78502,Central High School ,10/23/2020,"2,017.07 ",Pre-K Meals - USDA,Materials and Supplies - MS
Shelton State CC,78503,Electude USA LLC ,10/23/2020,"18,230.00 ",CARES Act - HBCU and Strengthening,Subscriptions - OOS
Shelton State CC,78504,Goodwyn Mills & Cawood Inc ,10/23/2020,"2,090.71 ",Title III SAFRA X8-X9,Construction in Progress - CE
Shelton State CC,78504,Goodwyn Mills & Cawood Inc ,10/23/2020,"10,370.34 ",Title III B X9-X0,Other Contractual Services - PS
Shelton State CC,78504,Goodwyn Mills & Cawood Inc ,10/23/2020,"50,181.68 ",Master Plan & Facility Assessm-Mrtn,Other Contractual Services - PS
Shelton State CC,78505,JJ Keller & Associates ,10/23/2020,41.84 ,Ready to Work 2XX9-2XX0,Materials and Supplies - MS
Shelton State CC,78506,Nebraska Health Care Association ,10/23/2020,380.00 ,Unrestricted Shared Services,Memberships - PS
Shelton State CC,78507,Office Depot ,10/23/2020,146.65 ,Title III B X8-X9,Materials and Supplies - MS
Shelton State CC,78508,Society of Manufacturing Engineers ,10/23/2020,"34,816.00 ",CARES Act - HBCU and Strengthening,Subscriptions - OOS
Shelton State CC,78509,Xerox Corporation ,10/23/2020,40.69 ,Unrestricted-Martin Campus,Short-Term Equipment Rentals - OOS
Shelton State CC,78509,Xerox Corporation ,10/23/2020,816.20 ,Unrestricted Shared Services,Short-Term Equipment Rentals - OOS
Shelton State CC,78511,Shelton State Payroll Account ,10/28/2020,"1,140,472.01 ",Unrestricted Shared Services,Payroll Clearing
Shelton State CC,78517,Ace of Tuscaloosa Cheer Company ,10/30/2020,"1,750.00 ",Unrestricted-Martin Campus,Other Contractual Services - PS
Shelton State CC,78518,Act ,10/30/2020,244.00 ,Ready to Work 2XX9-2XX0,Other Contractual Services - PS
Shelton State CC,78518,Act ,10/30/2020,"2,506.00 ",Unrestricted-Martin Campus,Other Contractual Services - PS
Shelton State CC,78519,Air Hydro Power Inc ,10/30/2020,33.19 ,Unrestricted-Martin Campus,Materials and Supplies - MS
Shelton State CC,78520,Al Power Co ,10/30/2020,"27,364.26 ",Unrestricted-Fredd Campus,Electricity - UC
Shelton State CC,78520,Al Power Co ,10/30/2020,"69,486.70 ",Unrestricted-Martin Campus,Electricity - UC
Shelton State CC,78521,Alabama Community College Conference Inc ,10/30/2020,"9,224.00 ",Unrestricted-Martin Campus,Memberships - PS
Shelton State CC,78522,Alabama Deans Of Student Affairs Association ,10/30/2020,275.00 ,Unrestricted Shared Services,Memberships - PS
Shelton State CC,78523,Alabama Mobile Storage Inc. ,10/30/2020,391.00 ,Renewal & Replacement-Fredd Campus,Short-Term Equipment Rentals - OOS
Shelton State CC,78524,Alabama Veterans Affairs Association ,10/30/2020,125.00 ,Unrestricted Shared Services,Registration Fees- IS
Shelton State CC,78525,Alert Services Inc. ,10/30/2020,"2,237.00 ",Unrestricted-Martin Campus,Materials and Supplies - MS
Shelton State CC,78526,Amazon.Com ,10/30/2020,30.99 ,Unrestricted-Martin Campus,Maintenance & Repairs  - OOS
Shelton State CC,78526,Amazon.Com ,10/30/2020,777.65 ,Unrestricted-Martin Campus,Materials and Supplies - MS
Shelton State CC,78526,Amazon.Com ,10/30/2020,"1,645.92 ",CARES Act - GEERF Public Health,Materials and Supplies - MS
Shelton State CC,78527,American Behavioral Benefits Managers LLC ,10/30/2020,823.05 ,Unrestricted Shared Services,Other Contractual Services - PS
Shelton State CC,78528,American Osment ,10/30/2020,390.29 ,Unrestricted-Martin Campus,Materials and Supplies - MS
Shelton State CC,78528,American Osment ,10/30/2020,816.70 ,Unrestricted-Martin Campus,Maintenance & Repairs  - OOS
Shelton State CC,78529,ASCAP ,10/30/2020,"1,411.47 ",Unrestricted Shared Services,Memberships - PS
Shelton State CC,78530,At&T ,10/30/2020,"2,454.83 ",Unrestricted-Fredd Campus,Landline Phones - UC
Shelton State CC,78530,At&T ,10/30/2020,"5,028.51 ",Unrestricted-Martin Campus,Landline Phones - UC
Shelton State CC,78531,B & H Photo ,10/30/2020,"1,936.00 ",Unrestricted Shared Services,Materials and Supplies - MS
Shelton State CC,78532,Bryant Quentin,10/30/2020,175.00 ,Alabama STRONG Initiative 2019-20,Grants  Awards and Prizes - OOS
Shelton State CC,78533,Chamber of Commerce of West Alabama ,10/30/2020,240.00 ,Unrestricted Shared Services,Registration Fees- IS
Shelton State CC,78534,City Of Tuscaloosa ,10/30/2020,698.87 ,Unrestricted-Fredd Campus,Water & Sewer - UC
Shelton State CC,78534,City Of Tuscaloosa ,10/30/2020,"12,873.59 ",Unrestricted-Martin Campus,Water & Sewer - UC
Shelton State CC,78535,Comcast Cable ,10/30/2020,128.90 ,Title III B X8-X9,Cable - UC
Shelton State CC,78536,Condensed Curriculum International Inc ,10/30/2020,"31,123.80 ",Unrestricted-Martin Campus,Other Contractual Services - PS
Shelton State CC,78537,Dell Marketing ,10/30/2020,"3,926.50 ",CARES Act - HBCU and Strengthening,Equipment - non capitalized - MS
Shelton State CC,78539,Express Oil Change LLC ,10/30/2020,"2,881.43 ",Unrestricted Shared Services,Maintenance & Repairs  - OOS
Shelton State CC,78540,Follett Higher Education Group ,10/30/2020,167.97 ,Nucor Apprenticeship 2XX0-2XX1,Materials and Supplies - MS
Shelton State CC,78540,Follett Higher Education Group ,10/30/2020,"1,434.50 ",Unrestricted Shared Services,Other - Inventory
Shelton State CC,78540,Follett Higher Education Group ,10/30/2020,"10,172.01 ",Unrestricted Shared Services,Bookstore - AP
Shelton State CC,78541,Education to Go ,10/30/2020,"1,335.80 ",Unrestricted Shared Services,Books - CE
Shelton State CC,78542,Connection ,10/30/2020,"1,613.77 ",Unrestricted Shared Services,Materials and Supplies - MS
Shelton State CC,78543,Hargan Consulting LLC ,10/30/2020,"1,400.00 ",Unrestricted Shared Services,Advertising & Promotions - OOS
Shelton State CC,78544,Home Depot U.S.A. Inc. ,10/30/2020,"9,909.54 ",CARES Act - GEERF Public Health,Materials and Supplies - MS
Shelton State CC,78545,IBM ,10/30/2020,17.13 ,Title III B X8-X9,Leases - Interest Payments - OOS
Shelton State CC,78545,IBM ,10/30/2020,21.41 ,Unrestricted Shared Services,Leases - Interest Payments - OOS
Shelton State CC,78545,IBM ,10/30/2020,"5,148.44 ",Title III B X8-X9,Leases - Principal Payments - OOS
Shelton State CC,78545,IBM ,10/30/2020,"6,577.58 ",Unrestricted Shared Services,Leases - Principal Payments - OOS
Shelton State CC,78546,Icemakers Inc ,10/30/2020,305.00 ,Unrestricted-Fredd Campus,Maintenance & Repairs  - OOS
Shelton State CC,78547,Innovative Interfaces Inc. ,10/30/2020,"26,475.64 ",Title III B X8-X9,Subscriptions - OOS
Shelton State CC,78548,Instructure Inc. ,10/30/2020,"167,016.00 ",Unrestricted Shared Services,Subscriptions - OOS
Shelton State CC,78549,Internet Employment Linkage Inc ,10/30/2020,"2,100.00 ",Unrestricted Shared Services,Advertising & Promotions - OOS
Shelton State CC,78550,Jacksonville State University ,10/30/2020,198.00 ,Unrestricted Shared Services,Registration Fees- IS
Shelton State CC,78551,Johnson Controls ,10/30/2020,801.00 ,Renewal & Replacement-Martin Campus,Maintenance & Repairs  - OOS
Shelton State CC,78552,Kendall Electric ,10/30/2020,"1,503.62 ",Unrestricted Shared Services,Materials and Supplies - MS
Shelton State CC,78553,Layer 3 Communications LLC ,10/30/2020,749.86 ,Unrestricted Shared Services,Maintenance & Repairs  - OOS
Shelton State CC,78554,Lowe's ,10/30/2020,52.36 ,Unrestricted-Martin Campus,Materials and Supplies - MS
Shelton State CC,78554,Lowe's ,10/30/2020,"1,171.74 ",Unrestricted Shared Services,Materials and Supplies - MS
Shelton State CC,78555,Mazak ,10/30/2020,109.42 ,Unrestricted-Martin Campus,Materials and Supplies - MS
Shelton State CC,78556,Molina Osiris,10/30/2020,200.00 ,Unrestricted Shared Services,Honorariums - PS
Shelton State CC,78557,Mood Media North America Holdings Corp. ,10/30/2020,68.25 ,Unrestricted-Martin Campus,Other Contractual Services - PS
Shelton State CC,78558,Msc(Manhattan Supply Corp.) ,10/30/2020,"2,039.97 ",Unrestricted-Martin Campus,Materials and Supplies - MS
Shelton State CC,78559,NAFSA ,10/30/2020,43.00 ,Unrestricted Shared Services,Registration Fees- IS
Shelton State CC,78560,Northport Auto Supply ,10/30/2020,"1,146.81 ",Unrestricted-Martin Campus,Materials and Supplies - MS
Shelton State CC,78561,One Diversified LLC ,10/30/2020,"3,154.50 ",CARES Act - HBCU and Strengthening,Materials and Supplies - MS
Shelton State CC,78561,One Diversified LLC ,10/30/2020,"3,355.05 ",CARES Act - HBCU and Strengthening,Maintenance & Repairs  - OOS
Shelton State CC,78562,Ovid Technologies Inc. ,10/30/2020,"1,826.00 ",Unrestricted Shared Services,Books - CE
Shelton State CC,78563,Pitney Bowes Credit Corp. ,10/30/2020,694.40 ,Unrestricted Shared Services,Short-Term Equipment Rentals - OOS
Shelton State CC,78564,Promotional Concepts ,10/30/2020,"1,863.80 ",Unrestricted Shared Services,Advertising & Promotions - OOS
Shelton State CC,78565,Publix ,10/30/2020,"2,476.00 ",Unrestricted-Fredd Campus,Culinary Consumables
Shelton State CC,78566,QM Quality Matters Inc ,10/30/2020,225.00 ,Unrestricted Shared Services,Registration Fees- IS
Shelton State CC,78567,Quality Temporary Services Inc. ,10/30/2020,"2,247.15 ",CARES Act - GEERF Public Health,Other Contractual Services - PS
Shelton State CC,78568,Raynor Marketing Limited ,10/30/2020,405.90 ,Unrestricted Shared Services,Materials and Supplies - MS
Shelton State CC,78569,Redrock Software Corp. ,10/30/2020,"3,123.00 ",Unrestricted Shared Services,Subscriptions - OOS
Shelton State CC,78570,Reliable Machine Tool Repair ,10/30/2020,"1,411.00 ",Unrestricted-Martin Campus,Maintenance & Repairs  - OOS
Shelton State CC,78571,Respondus ,10/30/2020,"1,945.00 ",Unrestricted Shared Services,Subscriptions - OOS
Shelton State CC,78572,Rumsey EnvironmentalLlc ,10/30/2020,805.37 ,Unrestricted-Fredd Campus,Waste Disposal - UC
Shelton State CC,78572,Rumsey EnvironmentalLlc ,10/30/2020,"1,830.81 ",Unrestricted-Martin Campus,Waste Disposal - UC
Shelton State CC,78573,Sam'S Club ,10/30/2020,99.30 ,Unrestricted Shared Services,Materials and Supplies - MS
Shelton State CC,78573,Sam'S Club ,10/30/2020,"1,032.94 ",Unrestricted-Fredd Campus,Culinary Consumables
Shelton State CC,78574,Shelton State Comm. College ,10/30/2020,106.02 ,Unrestricted Shared Services,Bookstore - AP
Shelton State CC,78575,Southern Engraving Inc ,10/30/2020,613.40 ,Unrestricted Shared Services,Materials and Supplies - MS
Shelton State CC,78576,Southern Linc. ,10/30/2020,59.36 ,Unrestricted-Martin Campus,Landline Phones - UC
Shelton State CC,78577,Southland International Trucks Inc. ,10/30/2020,230.93 ,Unrestricted-Martin Campus,Maintenance & Repairs  - OOS
Shelton State CC,78578,Spine & Sport Chiropractic INC. ,10/30/2020,"3,000.00 ",Unrestricted-Martin Campus,Other Contractual Services - PS
Shelton State CC,78579,Strickland Paper Company Inc ,10/30/2020,"2,250.30 ",CARES Act - GEERF Public Health,Materials and Supplies - MS
Shelton State CC,78580,Sunbelt Rentals Inc. ,10/30/2020,990.57 ,Renewal & Replacement-Martin Campus,Short-Term Equipment Rentals - OOS
Shelton State CC,78581,The Lilly Company ,10/30/2020,222.01 ,Unrestricted Shared Services,Maintenance & Repairs  - OOS
Shelton State CC,78582,Trane Service ,10/30/2020,"127,367.62 ",Renewal & Replacement-Martin Campus,Maintenance & Repairs  - OOS
Shelton State CC,78583,U.S. Medical Specialities Inc. ,10/30/2020,469.20 ,Title III B X8-X9,Materials and Supplies - MS
Shelton State CC,78584,United Parcel Serv ,10/30/2020,40.20 ,Unrestricted Shared Services,Postage - OOS
Shelton State CC,78584,United Parcel Serv ,10/30/2020,44.96 ,Unrestricted Shared Services,Freight - OOS
Shelton State CC,78585,US Foods Inc. ,10/30/2020,"1,063.20 ",Unrestricted-Fredd Campus,Culinary Consumables
Shelton State CC,78586,W W Grainger Inc ,10/30/2020,186.93 ,Unrestricted Shared Services,Materials and Supplies - MS
Shelton State CC,78586,W W Grainger Inc ,10/30/2020,370.68 ,Unrestricted-Martin Campus,Materials and Supplies - MS
Shelton State CC,78587,Waste Recycling Inc. ,10/30/2020,380.00 ,Unrestricted Shared Services,Maintenance & Repairs  - OOS
Shelton State CC,78588,Watchdog Document Services ,10/30/2020,22.00 ,Unrestricted-Martin Campus,Materials and Supplies - MS
Shelton State CC,78588,Watchdog Document Services ,10/30/2020,44.00 ,Unrestricted-Fredd Campus,Materials and Supplies - MS
Shelton State CC,78588,Watchdog Document Services ,10/30/2020,451.00 ,Unrestricted Shared Services,Materials and Supplies - MS
Shelton State CC,78589,William M Bird & Co Inc ,10/30/2020,"1,880.40 ",Unrestricted Shared Services,Materials and Supplies - MS
Shelton State CC,78590,Windstream ,10/30/2020,"1,629.03 ",Unrestricted Shared Services,Landline Phones - UC
Shelton State CC,78591,Wood Fruitticher ,10/30/2020,247.91 ,Unrestricted-Fredd Campus,Culinary Consumables
Shelton State CC,78592,Xerox Corporation ,10/30/2020,193.02 ,Unrestricted-Fredd Campus,Short-Term Equipment Rentals - OOS
Shelton State CC,78592,Xerox Corporation ,10/30/2020,"1,204.93 ",Unrestricted Shared Services,Short-Term Equipment Rentals - OOS
Shelton State CC,78605,Alabama Media ,10/30/2020,"3,575.50 ",Unrestricted Shared Services,Advertising & Promotions - OOS
Shelton State CC,78606,Business Alabama ,10/30/2020,"3,418.00 ",Unrestricted Shared Services,Advertising & Promotions - OOS
Shelton State CC,78607,Condensed Curriculum International Inc ,10/30/2020,892.00 ,Unrestricted-Martin Campus,Other Contractual Services - PS
Shelton State CC,78608,Metro Mechanical ,10/30/2020,373.88 ,Renewal & Replacement-Fredd Campus,Service Contracts on Equipment -OOS
Shelton State CC,78608,Metro Mechanical ,10/30/2020,"1,121.65 ",Renewal & Replacement-Martin Campus,Service Contracts on Equipment -OOS
Shelton State CC,78609,National Association of HBCU Title III Administrators ,10/30/2020,300.00 ,Title III B X9-X0,Memberships - PS
Shelton State CC,78610,Office Depot ,10/30/2020,90.52 ,Unrestricted Shared Services,Materials and Supplies - MS
Shelton State CC,78611,Tuscaloosa News ,10/30/2020,"3,115.00 ",Unrestricted Shared Services,Advertising & Promotions - OOS
Shelton State CC,78612,State of Alabama ,11/2/2020,101.25 ,SNAP 2XX8-2XX9,Institutional Use - OOS
Shelton State CC,78613,Penn National Insurance ,11/2/2020,"1,723.00 ",Unrestricted Shared Services,Insurance and Bonding - PS
Shelton State CC,78614,Regions Bank ,11/2/2020,"2,322.62 ",AH Bean,Deposit Liabilities - AP
Shelton State CC,78617,American Health Information Management Assn. ,11/4/2020,"1,215.00 ",Unrestricted-Fredd Campus,Dep Liab - Health Information Ins
Shelton State CC,78618,Teacher's Retirement Systems of Alabama ,11/5/2020,"2,400.00 ",Unrestricted-Martin Campus,Group Health Insurance - FB
Shelton State CC,78620,Accreditation Commission For Education In Nursing Inc ,11/9/2020,"4,075.00 ",Unrestricted-Martin Campus,Accreditation Expense - PS
Shelton State CC,78621,Eatmon Joseph,11/9/2020,400.00 ,Unrestricted-Martin Campus,Conus (meals) - IS
Shelton State CC,78626,5 Degrees Branding LLC ,11/16/2020,218.58 ,Unrestricted Shared Services,Printing and Binding - OOS
Shelton State CC,78627,AA Workforce Testing ,11/16/2020,550.00 ,Unrestricted-Martin Campus,Materials and Supplies - MS
Shelton State CC,78629,Agile Sports Technologies Inc. dba Hudl ,11/16/2020,900.00 ,Unrestricted-Martin Campus,Materials and Supplies - MS
Shelton State CC,78630,Alabama College System Human Resources Management Assoc ,11/16/2020,250.00 ,Unrestricted Shared Services,Memberships - PS
Shelton State CC,78631,Amazon.Com ,11/16/2020,189.27 ,Unrestricted-Martin Campus,Materials and Supplies - MS
Shelton State CC,78632,American Osment ,11/16/2020,7.46 ,Unrestricted-Martin Campus,Materials and Supplies - MS
Shelton State CC,78632,American Osment ,11/16/2020,99.72 ,Unrestricted Shared Services,Materials and Supplies - MS
Shelton State CC,78633,Annie Essex Memorial Scholarship Program ,11/16/2020,250.00 ,One Time Only Agency Funds,Deposit Liabilities - AP
Shelton State CC,78634,Arrow Exterminators ,11/16/2020,260.00 ,Renewal & Replacement-Martin Campus,Maintenance & Repairs  - OOS
Shelton State CC,78635,B & H Photo ,11/16/2020,853.82 ,Unrestricted Shared Services,Materials and Supplies - MS
Shelton State CC,78636,Carl Zeiss Industrial Metrology LLC ,11/16/2020,"1,600.00 ",CARES Act - HBCU and Strengthening,Subscriptions - OOS
Shelton State CC,78637,Cidi Labs LLC ,11/16/2020,"6,556.00 ",CARES Act - HBCU and Strengthening,Subscriptions - OOS
Shelton State CC,78638,Comprehensive Sleep Center P.C. ,11/16/2020,"2,000.00 ",Title III B X9-X0,Other Contractual Services - PS
Shelton State CC,78639,Condensed Curriculum International Inc ,11/16/2020,620.00 ,Unrestricted Shared Services,Student 3rd Party Reimbursement-AR
Shelton State CC,78640,Courington Larry,11/16/2020,22.30 ,Unrestricted-Martin Campus,Materials and Supplies - MS
Shelton State CC,78641,Crawford Alexandra,11/16/2020,50.00 ,Unrestricted Shared Services,Honorariums - PS
Shelton State CC,78642,Credentials Solutions LLC ,11/16/2020,162.50 ,Unrestricted Shared Services,Materials and Supplies - MS
Shelton State CC,78643,Crimson Insulation Co. Inc. ,11/16/2020,"7,780.00 ",Renewal & Replacement-Martin Campus,Maintenance & Repairs  - OOS
Shelton State CC,78644,Deason Roofing & Sheet Metal ,11/16/2020,256.40 ,Renewal & Replacement-Fredd Campus,Maintenance & Repairs  - OOS
Shelton State CC,78644,Deason Roofing & Sheet Metal ,11/16/2020,"12,866.00 ",Renewal & Replacement-Martin Campus,Maintenance & Repairs  - OOS
Shelton State CC,78645,Dell Marketing ,11/16/2020,820.48 ,CARES Act - HBCU and Strengthening,Equipment - non capitalized - MS
Shelton State CC,78645,Dell Marketing ,11/16/2020,"1,446.20 ",CARES Act - HBCU and Strengthening,Materials and Supplies - MS
Shelton State CC,78646,Dixie State University ,11/16/2020,50.00 ,Unrestricted Shared Services,Registration Fees- IS
Shelton State CC,78647,DynoHelp LLC ,11/16/2020,"63,250.00 ",Title III B X8-X9,Furniture and Equip > $25K - CE
Shelton State CC,78648,Eatmon Joseph,11/16/2020,400.00 ,Unrestricted-Martin Campus,Conus (meals) - IS
Shelton State CC,78649,EOS Utility Services LLC ,11/16/2020,330.00 ,Renewal & Replacement-Martin Campus,Maintenance & Repairs  - OOS
Shelton State CC,78650,Essential Education ,11/16/2020,"1,275.00 ",AE - GED 2XX3-2XX4,Materials and Supplies - MS
Shelton State CC,78651,Fleetpride Inc. ,11/16/2020,"1,300.81 ",Unrestricted-Martin Campus,Maintenance & Repairs  - OOS
Shelton State CC,78652,Fred Robertson Wrecker Service Inc. ,11/16/2020,195.00 ,Unrestricted-Martin Campus,Maintenance & Repairs  - OOS
Shelton State CC,78653,Glass Kaly,11/16/2020,507.50 ,Unrestricted Shared Services,Advertising & Promotions - OOS
Shelton State CC,78654,Connection ,11/16/2020,"6,739.01 ",Unrestricted Shared Services,Materials and Supplies - MS
Shelton State CC,78655,Home Depot U.S.A. Inc. ,11/16/2020,"1,762.97 ",Unrestricted Shared Services,Materials and Supplies - MS
Shelton State CC,78656,Home Depot U.S.A. Inc. ,11/16/2020,130.32 ,CARES Act - GEERF Public Health,Materials and Supplies - MS
Shelton State CC,78656,Home Depot U.S.A. Inc. ,11/16/2020,"1,008.80 ",Unrestricted Shared Services,Materials and Supplies - MS
Shelton State CC,78657,IBM ,11/16/2020,257.08 ,Title III B X9-X0,Leases - Interest Payments - OOS
Shelton State CC,78657,IBM ,11/16/2020,523.65 ,Unrestricted Shared Services,Leases - Interest Payments - OOS
Shelton State CC,78657,IBM ,11/16/2020,"2,440.27 ",Title III B X9-X0,Leases - Principal Payments - OOS
Shelton State CC,78657,IBM ,11/16/2020,"4,622.49 ",Unrestricted Shared Services,Leases - Principal Payments - OOS
Shelton State CC,78658,Icemakers Inc ,11/16/2020,"3,792.62 ",Vocational Ed/CTE X9-X0,Equipment - non capitalized - MS
Shelton State CC,78659,Image Hive ,11/16/2020,"1,850.00 ",Unrestricted Shared Services,Other Professional Fees - PS
Shelton State CC,78660,Industrial Safet LLC ,11/16/2020,547.96 ,CARES Act - GEERF Public Health,Materials and Supplies - MS
Shelton State CC,78661,Jackson Security Service ,11/16/2020,111.29 ,Renewal & Replacement-Fredd Campus,Maintenance & Repairs  - OOS
Shelton State CC,78661,Jackson Security Service ,11/16/2020,500.56 ,Renewal & Replacement-Martin Campus,Maintenance & Repairs  - OOS
Shelton State CC,78662,Kidz Life Magazine ,11/16/2020,"1,000.00 ",Unrestricted Shared Services,Advertising & Promotions - OOS
Shelton State CC,78663,Knight Sign Industries Inc. ,11/16/2020,"3,177.00 ",CARES Act - GEERF Public Health,Maintenance & Repairs  - OOS
Shelton State CC,78664,KONE Inc. ,11/16/2020,614.28 ,Renewal & Replacement-Martin Campus,Maintenance & Repairs  - OOS
Shelton State CC,78665,Layer 3 Communications LLC ,11/16/2020,106.00 ,Title III B X8-X9,Subscriptions - OOS
Shelton State CC,78665,Layer 3 Communications LLC ,11/16/2020,440.00 ,Title III B X8-X9,Maintenance & Repairs  - OOS
Shelton State CC,78665,Layer 3 Communications LLC ,11/16/2020,749.86 ,Unrestricted Shared Services,Maintenance & Repairs  - OOS
Shelton State CC,78665,Layer 3 Communications LLC ,11/16/2020,"1,372.70 ",Title III B X8-X9,Equipment - non capitalized - MS
Shelton State CC,78665,Layer 3 Communications LLC ,11/16/2020,"6,603.80 ",Title III B X8-X9,Furniture and Equip $5K - $25K - CE
Shelton State CC,78666,Lowe's ,11/16/2020,169.02 ,Unrestricted-Martin Campus,Materials and Supplies - MS
Shelton State CC,78666,Lowe's ,11/16/2020,225.10 ,Unrestricted Shared Services,Materials and Supplies - MS
Shelton State CC,78666,Lowe's ,11/16/2020,642.09 ,Title III B X8-X9,Materials and Supplies - MS
Shelton State CC,78667,Mazak ,11/16/2020,409.65 ,Unrestricted-Martin Campus,Maintenance & Repairs  - OOS
Shelton State CC,78668,Metro Mechanical ,11/16/2020,373.88 ,Renewal & Replacement-Fredd Campus,Service Contracts on Equipment -OOS
Shelton State CC,78668,Metro Mechanical ,11/16/2020,"1,121.65 ",Renewal & Replacement-Martin Campus,Service Contracts on Equipment -OOS
Shelton State CC,78669,Mood Media North America Holdings Corp. ,11/16/2020,68.25 ,Unrestricted-Martin Campus,Subscriptions - OOS
Shelton State CC,78670,Msc(Manhattan Supply Corp.) ,11/16/2020,"3,233.58 ",Unrestricted-Martin Campus,Materials and Supplies - MS
Shelton State CC,78671,N.C. Morgan Construction Co. Inc. ,11/16/2020,"165,090.87 ",Title III B X8-X9,Construction in Progress - CE
Shelton State CC,78672,Office Depot ,11/16/2020,176.45 ,Unrestricted Shared Services,Materials and Supplies - MS
Shelton State CC,78673,Osborne Machinery Movers ,11/16/2020,975.00 ,Unrestricted-Martin Campus,Maintenance & Repairs  - OOS
Shelton State CC,78674,Park Supply of Tuscaloosa Inc. ,11/16/2020,244.80 ,Unrestricted-Martin Campus,Maintenance & Repairs  - OOS
Shelton State CC,78675,Patco Electrical Contractors Inc ,11/16/2020,"5,121.00 ",Renewal & Replacement-Fredd Campus,Maintenance & Repairs  - OOS
Shelton State CC,78676,Pitney Bowes Credit Corp. ,11/16/2020,"4,618.74 ",Unrestricted Shared Services,Short-Term Equipment Rentals - OOS
Shelton State CC,78677,PPG Architectural Finishes ,11/16/2020,84.24 ,Renewal & Replacement-Fredd Campus,Maintenance & Repairs  - OOS
Shelton State CC,78677,PPG Architectural Finishes ,11/16/2020,210.53 ,Unrestricted-Fredd Campus,Materials and Supplies - MS
Shelton State CC,78677,PPG Architectural Finishes ,11/16/2020,326.03 ,Unrestricted-Martin Campus,Materials and Supplies - MS
Shelton State CC,78678,Publix ,11/16/2020,74.18 ,Unrestricted-Martin Campus,Materials and Supplies - MS
Shelton State CC,78678,Publix ,11/16/2020,643.34 ,Unrestricted-Fredd Campus,Culinary Consumables
Shelton State CC,78679,Quality Temporary Services Inc. ,11/16/2020,"2,130.00 ",CARES Act - GEERF Public Health,Other Contractual Services - PS
Shelton State CC,78680,Ridout Plastics ,11/16/2020,"1,364.76 ",Unrestricted Shared Services,Materials and Supplies - MS
Shelton State CC,78681,Rumsey EnvironmentalLlc ,11/16/2020,805.37 ,Unrestricted-Fredd Campus,Waste Disposal - UC
Shelton State CC,78681,Rumsey EnvironmentalLlc ,11/16/2020,"1,830.81 ",Unrestricted-Martin Campus,Waste Disposal - UC
Shelton State CC,78682,Sam'S Club ,11/16/2020,212.19 ,Unrestricted-Fredd Campus,Culinary Consumables
Shelton State CC,78682,Sam'S Club ,11/16/2020,396.61 ,Unrestricted-Martin Campus,Materials and Supplies - MS
Shelton State CC,78683,Southern Heating & Cooling LLC ,11/16/2020,"4,375.00 ",Vocational Ed/CTE X9-X0,Equipment - non capitalized - MS
Shelton State CC,78684,Southland International Trucks Inc. ,11/16/2020,240.00 ,Unrestricted-Martin Campus,Maintenance & Repairs  - OOS
Shelton State CC,78685,Spire ,11/16/2020,"1,140.92 ",Unrestricted-Fredd Campus,Gas & Heating Fuel - UC
Shelton State CC,78686,Strickland Paper Company Inc ,11/16/2020,"3,525.10 ",CARES Act - GEERF Public Health,Materials and Supplies - MS
Shelton State CC,78687,The Lilly Company ,11/16/2020,"1,348.84 ",Unrestricted Shared Services,Maintenance & Repairs  - OOS
Shelton State CC,78688,The Vacuum Clinic ,11/16/2020,280.08 ,Unrestricted-Martin Campus,Maintenance & Repairs  - OOS
Shelton State CC,78689,Tuscaloosa Acoustical Systems Inc. ,11/16/2020,"11,332.00 ",Title III B X9-X0,Maintenance & Repairs  - OOS
Shelton State CC,78690,Tuskaloosa Lawn Equipment ,11/16/2020,105.70 ,Unrestricted-Martin Campus,Materials and Supplies - MS
Shelton State CC,78691,Twitty Andrew,11/16/2020,100.00 ,Unrestricted Shared Services,Honorariums - PS
Shelton State CC,78692,Unifirst Corporation ,11/16/2020,"1,598.89 ",Unrestricted Shared Services,Materials and Supplies - MS
Shelton State CC,78693,United Parcel Serv ,11/16/2020,62.00 ,Unrestricted Shared Services,Freight - OOS
Shelton State CC,78694,W W Grainger Inc ,11/16/2020,384.40 ,Unrestricted-Martin Campus,Materials and Supplies - MS
Shelton State CC,78695,WEX Bank ,11/16/2020,40.77 ,Unrestricted-Martin Campus,Materials and Supplies - MS
Shelton State CC,78695,WEX Bank ,11/16/2020,101.95 ,Unrestricted Shared Services,Materials and Supplies - MS
Shelton State CC,78695,WEX Bank ,11/16/2020,759.44 ,Unrestricted-Martin Campus,Gasoline & Oil - Motor Veh - OOS
Shelton State CC,78695,WEX Bank ,11/16/2020,917.90 ,Unrestricted Shared Services,Gasoline & Oil - Motor Veh - OOS
Shelton State CC,78696,Wittichen Sup Co ,11/16/2020,7.63 ,Unrestricted-Fredd Campus,Maintenance & Repairs  - OOS
Shelton State CC,78696,Wittichen Sup Co ,11/16/2020,"1,336.20 ",Unrestricted-Martin Campus,Maintenance & Repairs  - OOS
Shelton State CC,78697,Wood Fruitticher ,11/16/2020,266.06 ,Unrestricted-Fredd Campus,Culinary Consumables
Shelton State CC,78698,Xerox Corporation ,11/16/2020,(6.69),Unrestricted-Fredd Campus,Short-Term Equipment Rentals - OOS
Shelton State CC,78698,Xerox Corporation ,11/16/2020,57.89 ,AE-State Regular 2XX0-2XX1,Short-Term Equipment Rentals - OOS
Shelton State CC,78698,Xerox Corporation ,11/16/2020,210.98 ,Unrestricted-Martin Campus,Miscellaneous - AR
Shelton State CC,78698,Xerox Corporation ,11/16/2020,481.65 ,Unrestricted-Martin Campus,Short-Term Equipment Rentals - OOS
Shelton State CC,78698,Xerox Corporation ,11/16/2020,"1,320.58 ",Unrestricted Shared Services,Short-Term Equipment Rentals - OOS
Shelton State CC,78701,Alabama Community College System ,11/18/2020,300.00 ,Unrestricted Shared Services,Memberships - PS
Shelton State CC,78702,Bishop Thiana,11/18/2020,220.00 ,Pharmacy Tech-The Women's Fund,Grants  Awards and Prizes - OOS
Shelton State CC,78703,Dansby April,11/18/2020,220.00 ,Pharmacy Tech-The Women's Fund,Grants  Awards and Prizes - OOS
Shelton State CC,78704,Hargrove Jasmine,11/18/2020,220.00 ,Pharmacy Tech-The Women's Fund,Grants  Awards and Prizes - OOS
Shelton State CC,78705,Harris Laquisha,11/18/2020,104.00 ,Pharmacy Tech-The Women's Fund,Institutional Use - OOS
Shelton State CC,78705,Harris Laquisha,11/18/2020,220.00 ,Pharmacy Tech-The Women's Fund,Grants  Awards and Prizes - OOS
Shelton State CC,78706,Hawkins Christina,11/18/2020,220.00 ,Pharmacy Tech-The Women's Fund,Grants  Awards and Prizes - OOS
Shelton State CC,78707,Hood Myesha,11/18/2020,220.00 ,Pharmacy Tech-The Women's Fund,Grants  Awards and Prizes - OOS
Shelton State CC,78708,Mixon Briana,11/18/2020,220.00 ,Pharmacy Tech-The Women's Fund,Grants  Awards and Prizes - OOS
Shelton State CC,78709,Thomas Kristye,11/18/2020,220.00 ,Pharmacy Tech-The Women's Fund,Grants  Awards and Prizes - OOS
Shelton State CC,78710,Washington Keambria,11/18/2020,220.00 ,Pharmacy Tech-The Women's Fund,Grants  Awards and Prizes - OOS
Shelton State CC,78711,Washington Quianna,11/18/2020,220.00 ,Pharmacy Tech-The Women's Fund,Grants  Awards and Prizes - OOS
Shelton State CC,78712,White Kimberly,11/18/2020,220.00 ,Pharmacy Tech-The Women's Fund,Grants  Awards and Prizes - OOS
Shelton State CC,78713,Whitehead Tiairra,11/18/2020,220.00 ,Pharmacy Tech-The Women's Fund,Grants  Awards and Prizes - OOS
Shelton State CC,78715,Herff Jones ,11/19/2020,"5,515.00 ",Nursing Accessories,Deposit Liabilities - AP
Shelton State CC,78716,Insurance Office of America Inc ,11/19/2020,"20,326.08 ",Unrestricted Shared Services,Insurance and Bonding - PS
Shelton State CC,78717,Regions Bank ,11/19/2020,399.00 ,Unrestricted Shared Services,Subscriptions - OOS
Shelton State CC,78717,Regions Bank ,11/19/2020,932.19 ,Unrestricted Shared Services,Materials and Supplies - MS
Shelton State CC,78718,Hawkins Christina,11/23/2020,104.00 ,Pharmacy Tech-The Women's Fund,Institutional Use - OOS
Shelton State CC,78719,McClain Kiara,11/23/2020,175.00 ,Alabama STRONG Initiative 2019-20,Grants  Awards and Prizes - OOS
Shelton State CC,78720,Shelton State Payroll Account ,11/24/2020,"1,136,112.16 ",Unrestricted Shared Services,Payroll Clearing
Shelton State CC,78733,4Imprint Inc ,11/30/2020,"4,548.65 ",Unrestricted Shared Services,Advertising & Promotions - OOS
Shelton State CC,78734,5 Degrees Branding LLC ,11/30/2020,"1,750.00 ",Unrestricted Shared Services,Advertising & Promotions - OOS
Shelton State CC,78735,ABC Fire Equipment INC ,11/30/2020,"3,479.91 ",Renewal & Replacement-Fredd Campus,Maintenance & Repairs  - OOS
Shelton State CC,78736,Ace of Tuscaloosa Cheer Company ,11/30/2020,"1,750.00 ",Unrestricted-Martin Campus,Other Contractual Services - PS
Shelton State CC,78737,Advanced Disposal ,11/30/2020,398.00 ,Renewal & Replacement-Fredd Campus,Short-Term Equipment Rentals - OOS
Shelton State CC,78737,Advanced Disposal ,11/30/2020,667.52 ,Renewal & Replacement-Martin Campus,Short-Term Equipment Rentals - OOS
Shelton State CC,78738,Airgas South Inc. ,11/30/2020,84.85 ,Unrestricted-Martin Campus,Materials and Supplies - MS
Shelton State CC,78739,Al Power Co ,11/30/2020,"17,176.07 ",Unrestricted-Fredd Campus,Electricity - UC
Shelton State CC,78739,Al Power Co ,11/30/2020,"99,534.14 ",Unrestricted-Martin Campus,Electricity - UC
Shelton State CC,78740,Alabama Counseling Association ,11/30/2020,95.00 ,Unrestricted Shared Services,Memberships - PS
Shelton State CC,78741,Alabama Mobile Storage Inc. ,11/30/2020,91.00 ,Renewal & Replacement-Fredd Campus,Short-Term Equipment Rentals - OOS
Shelton State CC,78742,Alert Services Inc. ,11/30/2020,"1,917.00 ",Unrestricted-Martin Campus,Materials and Supplies - MS
Shelton State CC,78743,Amazon.Com ,11/30/2020,151.09 ,Unrestricted Shared Services,Materials and Supplies - MS
Shelton State CC,78743,Amazon.Com ,11/30/2020,"1,965.82 ",Unrestricted-Martin Campus,Materials and Supplies - MS
Shelton State CC,78743,Amazon.Com ,11/30/2020,"2,046.45 ",CARES Act - GEERF Public Health,Materials and Supplies - MS
Shelton State CC,78744,American Behavioral Benefits Managers LLC ,11/30/2020,823.05 ,Unrestricted Shared Services,Other Contractual Services - PS
Shelton State CC,78745,Anypromo Inc. ,11/30/2020,401.66 ,Unrestricted Shared Services,Materials and Supplies - MS
Shelton State CC,78746,At&T Mobility ,11/30/2020,21.25 ,Unrestricted-Fredd Campus,Internet - UC
Shelton State CC,78746,At&T Mobility ,11/30/2020,204.34 ,Unrestricted-Martin Campus,Internet - UC
Shelton State CC,78746,At&T Mobility ,11/30/2020,656.99 ,Unrestricted Shared Services,Internet - UC
Shelton State CC,78747,Campus EAI Inc ,11/30/2020,"3,510.00 ",Unrestricted Shared Services,Maintenance & Repairs  - OOS
Shelton State CC,78748,Campus EAI Inc ,11/30/2020,500.00 ,Unrestricted Shared Services,Maintenance & Repairs  - OOS
Shelton State CC,78749,Central Garden & Pet ,11/30/2020,"2,532.00 ",Unrestricted-Martin Campus,Maintenance & Repairs  - OOS
Shelton State CC,78750,Central High School ,11/30/2020,832.29 ,Pre-K Meal Payments,Materials and Supplies - MS
Shelton State CC,78750,Central High School ,11/30/2020,"1,718.23 ",Pre-K Meals - USDA,Materials and Supplies - MS
Shelton State CC,78751,Chamber of Commerce of West Alabama ,11/30/2020,875.00 ,Unrestricted Shared Services,Advertising & Promotions - OOS
Shelton State CC,78752,City Of Tuscaloosa ,11/30/2020,459.43 ,Unrestricted-Fredd Campus,Water & Sewer - UC
Shelton State CC,78752,City Of Tuscaloosa ,11/30/2020,"7,420.12 ",Unrestricted-Martin Campus,Water & Sewer - UC
Shelton State CC,78753,Coca-Cola Bottling Company United Inc. ,11/30/2020,119.80 ,Unrestricted Shared Services,Materials and Supplies - MS
Shelton State CC,78754,Comcast Cable ,11/30/2020,136.92 ,Title III B X9-X0,Cable - UC
Shelton State CC,78755,Diamedical Usa Equipment Company ,11/30/2020,139.30 ,Unrestricted-Martin Campus,Materials and Supplies - MS
Shelton State CC,78756,Ebsco Subcription Serv ,11/30/2020,927.10 ,Title III B X8-X9,Subscriptions - OOS
Shelton State CC,78757,Farmers Co-Op ,11/30/2020,657.00 ,Unrestricted Shared Services,Materials and Supplies - MS
Shelton State CC,78758,Fletcher Sup Co Inc ,11/30/2020,"8,825.40 ",Unrestricted-Martin Campus,Materials and Supplies - MS
Shelton State CC,78759,Education to Go ,11/30/2020,653.60 ,Unrestricted Shared Services,Books - CE
Shelton State CC,78760,Connection ,11/30/2020,"2,795.64 ",Unrestricted Shared Services,Materials and Supplies - MS
Shelton State CC,78761,Hand Arendall Harrison Sale LLC ,11/30/2020,"2,025.00 ",Unrestricted Shared Services,Legal Services - PS
Shelton State CC,78762,Home Depot U.S.A. Inc. ,11/30/2020,"1,314.77 ",Unrestricted Shared Services,Materials and Supplies - MS
Shelton State CC,78763,Home Depot U.S.A. Inc. ,11/30/2020,408.95 ,Unrestricted Shared Services,Materials and Supplies - MS
Shelton State CC,78764,Infobase Holdings Inc ,11/30/2020,"4,478.44 ",Title III B X8-X9,Subscriptions - OOS
Shelton State CC,78765,John Wayne Plumbing ,11/30/2020,"3,705.00 ",Renewal & Replacement-Fredd Campus,Maintenance & Repairs  - OOS
Shelton State CC,78766,Kendall Electric ,11/30/2020,226.26 ,Unrestricted-Martin Campus,Maintenance & Repairs  - OOS
Shelton State CC,78766,Kendall Electric ,11/30/2020,254.76 ,Unrestricted Shared Services,Materials and Supplies - MS
Shelton State CC,78766,Kendall Electric ,11/30/2020,"1,487.38 ",Unrestricted-Fredd Campus,Materials and Supplies - MS
Shelton State CC,78768,Kyle Office Sup Co Inc ,11/30/2020,795.24 ,CARES Act - GEERF Public Health,Materials and Supplies - MS
Shelton State CC,78769,Layer3 Communications ,11/30/2020,"4,800.00 ",Unrestricted Shared Services,Maintenance & Repairs  - OOS
Shelton State CC,78770,Learning Labs Inc ,11/30/2020,"45,562.00 ",Vocational Ed/CTE X9-X0,Equipment - non capitalized - MS
Shelton State CC,78771,Lowe's ,11/30/2020,25.50 ,Unrestricted-Fredd Campus,Materials and Supplies - MS
Shelton State CC,78772,Msc(Manhattan Supply Corp.) ,11/30/2020,"2,339.37 ",Unrestricted-Martin Campus,Materials and Supplies - MS
Shelton State CC,78773,National League for Nursing Inc. ,11/30/2020,"1,785.00 ",Unrestricted-Martin Campus,Memberships - PS
Shelton State CC,78774,Northport Auto Supply ,11/30/2020,361.14 ,Unrestricted-Martin Campus,Maintenance & Repairs  - OOS
Shelton State CC,78775,Office Depot ,11/30/2020,752.47 ,Unrestricted Shared Services,Materials and Supplies - MS
Shelton State CC,78776,Phillips Corporation ,11/30/2020,"1,159.04 ",Unrestricted-Martin Campus,Maintenance & Repairs  - OOS
Shelton State CC,78777,PPG Architectural Finishes ,11/30/2020,183.32 ,Unrestricted-Martin Campus,Materials and Supplies - MS
Shelton State CC,78778,Premier Service Compnay Inc. ,11/30/2020,"6,531.25 ",Fire Alarm & Security Upgrade-Fredd,Construction in Progress - CE
Shelton State CC,78778,Premier Service Compnay Inc. ,11/30/2020,"6,531.25 ",Title III SAFRA X9-X0,Construction in Progress - CE
Shelton State CC,78779,Publix ,11/30/2020,697.81 ,Unrestricted-Fredd Campus,Culinary Consumables
Shelton State CC,78780,Quality Temporary Services Inc. ,11/30/2020,810.30 ,CARES Act - GEERF Public Health,Other Contractual Services - PS
Shelton State CC,78781,Qualtrics LLC ,11/30/2020,"3,675.00 ",Unrestricted Shared Services,Subscriptions - OOS
Shelton State CC,78782,Sam'S Club ,11/30/2020,133.58 ,Unrestricted-Fredd Campus,Culinary Consumables
Shelton State CC,78782,Sam'S Club ,11/30/2020,168.30 ,Unrestricted-Martin Campus,Materials and Supplies - MS
Shelton State CC,78783,Shoot-A-Way Inc. ,11/30/2020,"4,504.00 ",Unrestricted-Martin Campus,Materials and Supplies - MS
Shelton State CC,78784,Smithson Anthony,11/30/2020,"3,135.00 ",Unrestricted-Martin Campus,Other Contractual Services - PS
Shelton State CC,78785,Spine & Sport Chiropractic INC. ,11/30/2020,"3,000.00 ",Unrestricted-Martin Campus,Other Contractual Services - PS
Shelton State CC,78786,Spire ,11/30/2020,395.92 ,Unrestricted-Martin Campus,Gas & Heating Fuel - UC
Shelton State CC,78787,State of Alabama ,11/30/2020,455.78 ,Title III B X9-X0,Other Professional Fees - PS
Shelton State CC,78788,Strickland Paper Company Inc ,11/30/2020,197.64 ,Unrestricted Shared Services,Materials and Supplies - MS
Shelton State CC,78788,Strickland Paper Company Inc ,11/30/2020,"4,947.80 ",CARES Act - GEERF Public Health,Materials and Supplies - MS
Shelton State CC,78789,The Board of Trustees of the University of Alabama ,11/30/2020,"2,756.47 ",Unrestricted Shared Services,Printing and Binding - OOS
Shelton State CC,78790,The Board of Trustees of the University of Alabama ,11/30/2020,"5,430.00 ",Unrestricted Shared Services,Advertising & Promotions - OOS
Shelton State CC,78791,The Crimson White ,11/30/2020,"1,637.50 ",Unrestricted Shared Services,Advertising & Promotions - OOS
Shelton State CC,78792,Tuscaloosa Charter Service ,11/30/2020,"2,835.00 ",Unrestricted-Martin Campus,Commercial Transportation - IS
Shelton State CC,78793,Uline Inc ,11/30/2020,50.98 ,Unrestricted Shared Services,Materials and Supplies - MS
Shelton State CC,78794,United Parcel Serv ,11/30/2020,73.04 ,Unrestricted Shared Services,Freight - OOS
Shelton State CC,78795,Varsity Brands Holding Co. Inc. ,11/30/2020,"14,299.01 ",Unrestricted-Martin Campus,Materials and Supplies - MS
Shelton State CC,78796,W W Grainger Inc ,11/30/2020,"1,456.17 ",Renewal & Replacement-Martin Campus,Maintenance & Repairs  - OOS
Shelton State CC,78797,Watchdog Document Services ,11/30/2020,33.00 ,Unrestricted-Martin Campus,Materials and Supplies - MS
Shelton State CC,78797,Watchdog Document Services ,11/30/2020,66.00 ,Unrestricted-Fredd Campus,Materials and Supplies - MS
Shelton State CC,78797,Watchdog Document Services ,11/30/2020,671.00 ,Unrestricted Shared Services,Materials and Supplies - MS
Shelton State CC,78798,Xerox Corporation ,11/30/2020,150.22 ,Unrestricted-Martin Campus,Short-Term Equipment Rentals - OOS
Shelton State CC,78798,Xerox Corporation ,11/30/2020,308.88 ,AE-State Regular 2XX0-2XX1,Short-Term Equipment Rentals - OOS
Shelton State CC,78798,Xerox Corporation ,11/30/2020,"1,048.82 ",Title III B X9-X0,Short-Term Equipment Rentals - OOS
Shelton State CC,78798,Xerox Corporation ,11/30/2020,"2,892.82 ",Unrestricted Shared Services,Short-Term Equipment Rentals - OOS
Shelton State CC,78799,Xerox Corporation ,11/30/2020,182.12 ,Unrestricted Shared Services,Short-Term Equipment Rentals - OOS
Shelton State CC,78800,National Board For Respiratory Care ,11/30/2020,"2,660.00 ",Unrestricted-Fredd Campus,Dep Liab - Resp Thrpy Malpract Ins
Shelton State CC,78802,Lowe's ,12/1/2020,"2,238.20 ",Unrestricted Shared Services,Materials and Supplies - MS
Shelton State CC,78803,Hobby Lobby ,12/2/2020,174.10 ,RPT Program,Deposit Liabilities - AP
Shelton State CC,78804,Pitney Bowes ,12/3/2020,"4,000.00 ",Unrestricted Shared Services,Postage - OOS
Shelton State CC,78805,Peterson Rosalynde,12/7/2020,24.98 ,SSAPNS,Deposit Liabilities - AP
Shelton State CC,78806,Metropolitan Criminal Justice Executive Association ,12/7/2020,75.00 ,Unrestricted Shared Services,Registration Fees- IS
Shelton State CC,78807,U S Postal Service ,12/7/2020,"1,500.00 ",Unrestricted Shared Services,Postage - OOS
Shelton State CC,78808,Commission on Accreditation for Respiratory Care ,12/9/2020,"2,200.00 ",Unrestricted-Fredd Campus,Accreditation Expense - PS
Shelton State CC,78809,American Osment ,12/10/2020,"3,354.00 ",CARES Act - GEERF Public Health,Materials and Supplies - MS
Shelton State CC,78812,Diamond Golf Cars LLC ,12/10/2020,"8,000.00 ",CARES Act - GEERF Public Health,Furniture and Equip $5K - $25K - CE
Shelton State CC,78813,Home Depot U.S.A. Inc. ,12/10/2020,214.20 ,Unrestricted-Martin Campus,Materials and Supplies - MS
Shelton State CC,78813,Home Depot U.S.A. Inc. ,12/10/2020,"17,348.32 ",CARES Act - GEERF Public Health,Materials and Supplies - MS
Shelton State CC,78814,Quality Temporary Services Inc. ,12/10/2020,"2,683.80 ",CARES Act - GEERF Public Health,Other Contractual Services - PS
Shelton State CC,78815,Strickland Paper Company Inc ,12/10/2020,"12,298.30 ",CARES Act - GEERF Public Health,Materials and Supplies - MS
Shelton State CC,78817,Thompson Madonna,12/10/2020,"2,295.00 ",Unrestricted-Martin Campus,Conus (meals) - IS
Shelton State CC,78818,Insurance Office of America ,12/11/2020,"20,326.08 ",Unrestricted Shared Services,Insurance and Bonding - PS
Shelton State CC,78820,Dell Marketing ,12/14/2020,"10,580.00 ",CARES Act - GEERF Education,Materials and Supplies - MS
Shelton State CC,78820,Dell Marketing ,12/14/2020,"412,620.00 ",CARES Act - GEERF Education,Equipment - non capitalized - MS
Shelton State CC,78821,SHI International Corp. ,12/14/2020,"116,226.22 ",CARES Act - GEERF Education,Furniture and Equip $5K - $25K - CE
Shelton State CC,78822,The ESB Group Inc. ,12/14/2020,"10,798.38 ",CARES Act - GEERF Education,Materials and Supplies - MS
Shelton State CC,78822,The ESB Group Inc. ,12/14/2020,"109,183.62 ",CARES Act - GEERF Education,Furniture and Equip > $25K - CE
Shelton State CC,78823,State of Alabama ,12/14/2020,221.25 ,SNAP 2XX8-2XX9,Institutional Use - OOS
Shelton State CC,78824,Eatmon Joseph,12/14/2020,"2,700.00 ",Unrestricted-Martin Campus,Conus (meals) - IS
Shelton State CC,78830,Shelton State Payroll Account ,12/17/2020,"1,157,280.98 ",Unrestricted Shared Services,Payroll Clearing
Shelton State CC,78845,5 Degrees Branding LLC ,12/18/2020,"10,000.00 ",Unrestricted Shared Services,Printing and Binding - OOS
Shelton State CC,78846,AA Workforce Testing ,12/18/2020,490.00 ,SNAP 2XX8-2XX9,Institutional Use - OOS
Shelton State CC,78846,AA Workforce Testing ,12/18/2020,670.00 ,Unrestricted-Martin Campus,Materials and Supplies - MS
Shelton State CC,78847,Ace of Tuscaloosa Cheer Company ,12/18/2020,"1,750.00 ",Unrestricted-Martin Campus,Other Contractual Services - PS
Shelton State CC,78848,Act ,12/18/2020,20.00 ,SNAP 2XX8-2XX9,Other Contractual Services - PS
Shelton State CC,78848,Act ,12/18/2020,620.50 ,Ready to Work 2XX8-2XX9,Other Contractual Services - PS
Shelton State CC,78848,Act ,12/18/2020,"3,933.50 ",Unrestricted-Martin Campus,Other Contractual Services - PS
Shelton State CC,78849,Alabama Association of Chiefs of Police ,12/18/2020,100.00 ,Unrestricted Shared Services,Memberships - PS
Shelton State CC,78850,Alabama Central Glass ,12/18/2020,290.00 ,Renewal & Replacement-Fredd Campus,Maintenance & Repairs  - OOS
Shelton State CC,78851,Alabama Media ,12/18/2020,"3,450.00 ",Unrestricted Shared Services,Advertising & Promotions - OOS
Shelton State CC,78852,Alabama Mobile Storage Inc. ,12/18/2020,91.00 ,Renewal & Replacement-Fredd Campus,Short-Term Equipment Rentals - OOS
Shelton State CC,78853,Alabama Two-Year College Library Association ,12/18/2020,125.00 ,Unrestricted Shared Services,Memberships - PS
Shelton State CC,78854,Amazon.Com ,12/18/2020,122.97 ,Unrestricted-Martin Campus,Maintenance & Repairs  - OOS
Shelton State CC,78854,Amazon.Com ,12/18/2020,"1,326.83 ",Unrestricted Shared Services,Materials and Supplies - MS
Shelton State CC,78855,American Culinary Federation Inc. ,12/18/2020,235.00 ,Title III B X8-X9,Memberships - PS
Shelton State CC,78856,American Osment ,12/18/2020,"3,135.82 ",Unrestricted Shared Services,Materials and Supplies - MS
Shelton State CC,78857,Arrow Exterminators ,12/18/2020,935.00 ,Renewal & Replacement Shared Svcs,Maintenance & Repairs  - OOS
Shelton State CC,78858,ASE Education Foundation ,12/18/2020,"1,160.00 ",Unrestricted Shared Services,Materials and Supplies-Special - MS
Shelton State CC,78858,ASE Education Foundation ,12/18/2020,"1,850.00 ",Mechatronics Apprentship 2XX0-2XX1,Instructional Materials - MS
Shelton State CC,78859,At&T ,12/18/2020,"2,387.39 ",Unrestricted-Fredd Campus,Landline Phones - UC
Shelton State CC,78859,At&T ,12/18/2020,"4,961.07 ",Unrestricted-Martin Campus,Landline Phones - UC
Shelton State CC,78860,Atlas Welding Supply Co. Inc. ,12/18/2020,62.76 ,Unrestricted Shared Services,Gasoline & Oil - Motor Veh - OOS
Shelton State CC,78861,Award Company Of America ,12/18/2020,"1,357.74 ",Unrestricted Shared Services,Advertising & Promotions - OOS
Shelton State CC,78862,B & H Photo ,12/18/2020,693.70 ,Unrestricted-Martin Campus,Materials and Supplies - MS
Shelton State CC,78863,Beams Sarah,12/18/2020,100.00 ,Unrestricted Shared Services,Honorariums - PS
Shelton State CC,78864,Boostr LLC ,12/18/2020,"9,500.00 ",Unrestricted Shared Services,Advertising & Promotions - OOS
Shelton State CC,78865,Carter Christopher,12/18/2020,175.00 ,Alabama STRONG Initiative 2019-20,Grants  Awards and Prizes - OOS
Shelton State CC,78866,Chamber of Commerce of West Alabama ,12/18/2020,"10,000.00 ",Unrestricted Shared Services,Advertising & Promotions - OOS
Shelton State CC,78867,City Of Tuscaloosa ,12/18/2020,554.13 ,Unrestricted-Fredd Campus,Water & Sewer - UC
Shelton State CC,78867,City Of Tuscaloosa ,12/18/2020,"8,760.60 ",Unrestricted-Martin Campus,Water & Sewer - UC
Shelton State CC,78868,Comprehensive Sleep Center P.C. ,12/18/2020,"2,000.00 ",Title III B X9-X0,Other Contractual Services - PS
Shelton State CC,78869,Concourse Team Express LLC ,12/18/2020,"2,170.90 ",Unrestricted-Martin Campus,Materials and Supplies - MS
Shelton State CC,78870,Connection ,12/18/2020,137.87 ,Unrestricted Shared Services,Materials and Supplies - MS
Shelton State CC,78871,ConsuLab Educatech Inc ,12/18/2020,"43,455.00 ",Vocational Ed/CTE X9-X0,Equipment - non capitalized - MS
Shelton State CC,78872,Credentials Solutions LLC ,12/18/2020,365.00 ,Unrestricted Shared Services,Materials and Supplies - MS
Shelton State CC,78873,CW Paint ,12/18/2020,"3,933.60 ",Renewal & Replacement-Martin Campus,Maintenance & Repairs  - OOS
Shelton State CC,78874,Davis Vachanza,12/18/2020,175.00 ,Alabama STRONG Initiative 2019-20,Grants  Awards and Prizes - OOS
Shelton State CC,78875,Dell Marketing ,12/18/2020,166.55 ,Title III B X8-X9,Materials and Supplies - MS
Shelton State CC,78875,Dell Marketing ,12/18/2020,210.00 ,Unrestricted Shared Services,Subscriptions - OOS
Shelton State CC,78875,Dell Marketing ,12/18/2020,"3,627.46 ",Unrestricted Shared Services,Materials and Supplies - MS
Shelton State CC,78875,Dell Marketing ,12/18/2020,"68,111.53 ",Unrestricted Shared Services,Equipment - non capitalized - MS
Shelton State CC,78876,Digicert ,12/18/2020,"1,635.00 ",Unrestricted Shared Services,Computer Software(non capital) - MS
Shelton State CC,78877,EAB Global Inc ,12/18/2020,"37,000.00 ",CARES Act - HBCU and Strengthening,Computer Software(non capital) - MS
Shelton State CC,78878,Electronix Express ,12/18/2020,"5,875.00 ",Vocational Ed/CTE X9-X0,Equipment - non capitalized - MS
Shelton State CC,78879,Express Oil Change LLC ,12/18/2020,318.45 ,Unrestricted Shared Services,Maintenance & Repairs  - OOS
Shelton State CC,78880,Ferguson Enterprises Inc. ,12/18/2020,47.98 ,Unrestricted-Fredd Campus,Maintenance & Repairs  - OOS
Shelton State CC,78881,Fisher Scientific ,12/18/2020,718.22 ,Unrestricted-Martin Campus,Materials and Supplies - MS
Shelton State CC,78882,Fleetpride Inc. ,12/18/2020,111.04 ,Unrestricted-Martin Campus,Maintenance & Repairs  - OOS
Shelton State CC,78883,Fletcher Sup Co Inc ,12/18/2020,"1,675.89 ",Unrestricted Shared Services,Student 3rd Party Reimbursement-AR
Shelton State CC,78884,Follett Higher Education Group ,12/18/2020,842.43 ,Unrestricted Shared Services,Bookstore - AP
Shelton State CC,78885,Gamble Bridget,12/18/2020,175.00 ,Alabama STRONG Initiative 2019-20,Grants  Awards and Prizes - OOS
Shelton State CC,78886,Glass Kaly,12/18/2020,262.50 ,Unrestricted Shared Services,Advertising & Promotions - OOS
Shelton State CC,78887,Goodwyn Mills & Cawood Inc ,12/18/2020,"3,941.78 ",Title III B X8-X9,Construction in Progress - CE
Shelton State CC,78887,Goodwyn Mills & Cawood Inc ,12/18/2020,"24,041.25 ",Title III B X9-X0,Other Contractual Services - PS
Shelton State CC,78887,Goodwyn Mills & Cawood Inc ,12/18/2020,"32,471.25 ",Master Plan & Facility Assessm-Mrtn,Other Contractual Services - PS
Shelton State CC,78888,Greene Co Democrat ,12/18/2020,300.00 ,Unrestricted Shared Services,Advertising & Promotions - OOS
Shelton State CC,78889,Hand Arendall Harrison Sale LLC ,12/18/2020,157.50 ,Unrestricted Shared Services,Legal Services - PS
Shelton State CC,78890,Heritage-Crystal Clean Inc. ,12/18/2020,870.00 ,Unrestricted-Fredd Campus,Short-Term Equipment Rentals - OOS
Shelton State CC,78891,HESI ,12/18/2020,549.00 ,Unrestricted Shared Services,Subscriptions - OOS
Shelton State CC,78892,Home Accents ,12/18/2020,"1,701.47 ",Unrestricted Shared Services,Materials and Supplies - MS
Shelton State CC,78893,Home Depot U.S.A. Inc. ,12/18/2020,634.40 ,Unrestricted Shared Services,Materials and Supplies - MS
Shelton State CC,78894,IBM ,12/18/2020,248.09 ,Title III B X9-X0,Leases - Interest Payments - OOS
Shelton State CC,78894,IBM ,12/18/2020,506.38 ,Unrestricted Shared Services,Leases - Interest Payments - OOS
Shelton State CC,78894,IBM ,12/18/2020,"2,449.26 ",Title III B X9-X0,Leases - Principal Payments - OOS
Shelton State CC,78894,IBM ,12/18/2020,"4,639.76 ",Unrestricted Shared Services,Leases - Principal Payments - OOS
Shelton State CC,78895,Jackson Jantecia,12/18/2020,175.00 ,Alabama STRONG Initiative 2019-20,Grants  Awards and Prizes - OOS
Shelton State CC,78896,Jackson Security Service ,12/18/2020,111.29 ,Renewal & Replacement-Fredd Campus,Maintenance & Repairs  - OOS
Shelton State CC,78896,Jackson Security Service ,12/18/2020,500.56 ,Renewal & Replacement-Martin Campus,Maintenance & Repairs  - OOS
Shelton State CC,78897,Jameco ,12/18/2020,412.38 ,Unrestricted-Martin Campus,Materials and Supplies - MS
Shelton State CC,78898,Johnson Hunter,12/18/2020,175.00 ,Alabama STRONG Initiative 2019-20,Grants  Awards and Prizes - OOS
Shelton State CC,78899,Johnson Controls ,12/18/2020,441.50 ,Renewal & Replacement-Fredd Campus,Maintenance & Repairs  - OOS
Shelton State CC,78900,Jordan Bennie,12/18/2020,"1,800.00 ",Renewal & Replacement-Martin Campus,Maintenance & Repairs  - OOS
Shelton State CC,78901,Kaltura Inc. ,12/18/2020,"29,000.00 ",Unrestricted Shared Services,Subscriptions - OOS
Shelton State CC,78902,Kemp Porsche,12/18/2020,100.00 ,Unrestricted-Martin Campus,Honorariums - PS
Shelton State CC,78903,Kendall Electric ,12/18/2020,166.45 ,Unrestricted-Martin Campus,Materials and Supplies - MS
Shelton State CC,78904,Kip Tyner Production ,12/18/2020,"1,000.00 ",Unrestricted Shared Services,Other Contractual Services - PS
Shelton State CC,78905,Knight Sign Industries Inc. ,12/18/2020,"2,560.00 ",CARES Act - GEERF Public Health,Maintenance & Repairs  - OOS
Shelton State CC,78906,KONE Inc. ,12/18/2020,614.28 ,Renewal & Replacement-Martin Campus,Maintenance & Repairs  - OOS
Shelton State CC,78907,Kyle Office Sup Co Inc ,12/18/2020,256.00 ,Unrestricted-Martin Campus,Materials and Supplies - MS
Shelton State CC,78908,Lance Holloway Productions LLC ,12/18/2020,"8,500.00 ",Unrestricted Shared Services,Advertising & Promotions - OOS
Shelton State CC,78909,Layer 3 Communications LLC ,12/18/2020,"9,549.86 ",Unrestricted Shared Services,Maintenance & Repairs  - OOS
Shelton State CC,78909,Layer3 Communications ,12/18/2020,"1,179.90 ",Unrestricted Shared Services,Materials and Supplies - MS
Shelton State CC,78909,Layer3 Communications ,12/18/2020,"9,549.86 ",Unrestricted Shared Services,Maintenance & Repairs  - OOS
Shelton State CC,78910,Ledbetter Narquita,12/18/2020,175.00 ,Alabama STRONG Initiative 2019-20,Grants  Awards and Prizes - OOS
Shelton State CC,78911,Lowe's ,12/18/2020,157.68 ,Renewal & Replacement-Martin Campus,Maintenance & Repairs  - OOS
Shelton State CC,78911,Lowe's ,12/18/2020,200.01 ,Unrestricted-Martin Campus,Materials and Supplies - MS
Shelton State CC,78911,Lowe's ,12/18/2020,284.82 ,CARES Act - GEERF Public Health,Materials and Supplies - MS
Shelton State CC,78911,Lowe's ,12/18/2020,513.90 ,Unrestricted Shared Services,Materials and Supplies - MS
Shelton State CC,78912,Mainstage Theatrical Supp ,12/18/2020,"1,374.00 ",Unrestricted-Martin Campus,Materials and Supplies - MS
Shelton State CC,78913,McLeod Truck Parts Inc. ,12/18/2020,133.66 ,Unrestricted-Martin Campus,Maintenance & Repairs  - OOS
Shelton State CC,78914,Metro Mechanical ,12/18/2020,373.88 ,Renewal & Replacement-Fredd Campus,Service Contracts on Equipment -OOS
Shelton State CC,78914,Metro Mechanical ,12/18/2020,"1,121.65 ",Renewal & Replacement-Martin Campus,Service Contracts on Equipment -OOS
Shelton State CC,78914,Metro Mechanical ,12/18/2020,"3,758.00 ",Renewal & Replacement-Martin Campus,Maintenance & Repairs  - OOS
Shelton State CC,78915,Montgomery Melvin,12/18/2020,175.00 ,Alabama STRONG Initiative 2019-20,Grants  Awards and Prizes - OOS
Shelton State CC,78916,Mood Media North America Holdings Corp. ,12/18/2020,68.25 ,Unrestricted-Martin Campus,Subscriptions - OOS
Shelton State CC,78917,Msc(Manhattan Supply Corp.) ,12/18/2020,642.84 ,Unrestricted-Martin Campus,Materials and Supplies - MS
Shelton State CC,78918,NCS Pearson Inc ,12/18/2020,412.00 ,Unrestricted Shared Services,Materials and Supplies - MS
Shelton State CC,78918,NCS Pearson Inc ,12/18/2020,850.00 ,AE - GED 2XX3-2XX4,Materials and Supplies - MS
Shelton State CC,78919,North American Technician Excellance ,12/18/2020,90.00 ,Unrestricted Shared Services,Materials and Supplies - MS
Shelton State CC,78920,Office Depot ,12/18/2020,113.62 ,Title III B X8-X9,Materials and Supplies - MS
Shelton State CC,78920,Office Depot ,12/18/2020,211.80 ,Unrestricted-Martin Campus,Materials and Supplies - MS
Shelton State CC,78920,Office Depot ,12/18/2020,288.96 ,Unrestricted Shared Services,Materials and Supplies - MS
Shelton State CC,78921,Ovid Technologies Inc. ,12/18/2020,157.50 ,Unrestricted Shared Services,Books - CE
Shelton State CC,78922,PPG Architectural Finishes ,12/18/2020,(8.68),Unrestricted-Martin Campus,Materials and Supplies - MS
Shelton State CC,78922,PPG Architectural Finishes ,12/18/2020,796.00 ,Renewal & Replacement-Martin Campus,Materials and Supplies - MS
Shelton State CC,78922,PPG Architectural Finishes ,12/18/2020,"2,208.24 ",Renewal & Replacement-Martin Campus,Maintenance & Repairs  - OOS
Shelton State CC,78923,Pro KleenInc. ,12/18/2020,"2,880.00 ",Unrestricted-Martin Campus,Maintenance & Repairs  - OOS
Shelton State CC,78924,Publix ,12/18/2020,55.38 ,Unrestricted-Fredd Campus,Culinary Consumables
Shelton State CC,78925,Rayco Manufacturing Iinc ,12/18/2020,949.80 ,Unrestricted-Martin Campus,Materials and Supplies - MS
Shelton State CC,78926,Richardson Shakeitta,12/18/2020,175.00 ,Alabama STRONG Initiative 2019-20,Grants  Awards and Prizes - OOS
Shelton State CC,78927,Rumsey EnvironmentalLlc ,12/18/2020,891.91 ,Unrestricted-Fredd Campus,Waste Disposal - UC
Shelton State CC,78927,Rumsey EnvironmentalLlc ,12/18/2020,"2,027.59 ",Unrestricted-Martin Campus,Waste Disposal - UC
Shelton State CC,78928,Russell S Lee Floor & Tile Co ,12/18/2020,"8,507.00 ",Title III B X8-X9,Maintenance & Repairs  - OOS
Shelton State CC,78929,S&S Firestone Inc ,12/18/2020,"3,361.72 ",Unrestricted-Martin Campus,Maintenance & Repairs  - OOS
Shelton State CC,78930,Sam'S Club ,12/18/2020,133.58 ,Unrestricted-Fredd Campus,Culinary Consumables
Shelton State CC,78930,Sam'S Club ,12/18/2020,205.80 ,Unrestricted Shared Services,Materials and Supplies - MS
Shelton State CC,78930,Sam'S Club ,12/18/2020,417.70 ,Unrestricted-Martin Campus,Materials and Supplies - MS
Shelton State CC,78931,SkillsUSA Inc. ,12/18/2020,380.00 ,Pharmacy Tech-The Women's Fund,Other Contractual Services - PS
Shelton State CC,78932,Softchalk LLC ,12/18/2020,"8,900.00 ",Unrestricted Shared Services,Subscriptions - OOS
Shelton State CC,78933,Southland International Trucks Inc. ,12/18/2020,172.60 ,Unrestricted-Martin Campus,Maintenance & Repairs  - OOS
Shelton State CC,78934,Spine & Sport Chiropractic INC. ,12/18/2020,"3,000.00 ",Unrestricted-Martin Campus,Other Contractual Services - PS
Shelton State CC,78935,Spire ,12/18/2020,"1,413.06 ",Unrestricted-Martin Campus,Gas & Heating Fuel - UC
Shelton State CC,78935,Spire ,12/18/2020,"3,204.53 ",Unrestricted-Fredd Campus,Gas & Heating Fuel - UC
Shelton State CC,78936,Strategic Planning Online LLC ,12/18/2020,"25,000.00 ",Title III B X9-X0,Subscriptions - OOS
Shelton State CC,78937,Strickland Paper Company Inc ,12/18/2020,"1,408.70 ",Unrestricted Shared Services,Materials and Supplies - MS
Shelton State CC,78938,Summit Cleaning and Restoration Inc ,12/18/2020,200.00 ,Unrestricted-Martin Campus,Short-Term Equipment Rentals - OOS
Shelton State CC,78938,Summit Cleaning and Restoration Inc ,12/18/2020,975.00 ,Renewal & Replacement-Martin Campus,Maintenance & Repairs  - OOS
Shelton State CC,78939,Teaching Strategies LLC ,12/18/2020,"2,500.00 ",APT Creative,Materials and Supplies - MS
Shelton State CC,78939,Teaching Strategies LLC ,12/18/2020,"2,500.00 ",APT Platform,Materials and Supplies - MS
Shelton State CC,78940,The Board of Trustees of the University of Alabama ,12/18/2020,57.50 ,Unrestricted Shared Services,Printing and Binding - OOS
Shelton State CC,78941,The Hartford ,12/18/2020,"2,044.00 ",Unrestricted Shared Services,Insurance and Bonding - PS
Shelton State CC,78942,The Ups Store ,12/18/2020,66.89 ,Unrestricted Shared Services,Printing and Binding - OOS
Shelton State CC,78943,Trone Alexis,12/18/2020,175.00 ,Alabama STRONG Initiative 2019-20,Grants  Awards and Prizes - OOS
Shelton State CC,78944,Tusc Blueprinting Reprographic ,12/18/2020,115.25 ,Unrestricted Shared Services,Materials and Supplies - MS
Shelton State CC,78945,Tuscaloosa Business Exchange ,12/18/2020,237.50 ,Unrestricted Shared Services,Memberships - PS
Shelton State CC,78946,Tuscaloosa Human Resource (Thrp) ,12/18/2020,21.00 ,Unrestricted Shared Services,Memberships - PS
Shelton State CC,78947,Tuscaloosa News ,12/18/2020,"7,965.00 ",Unrestricted Shared Services,Advertising & Promotions - OOS
Shelton State CC,78948,Tuscaloosa Tractor & Equip. ,12/18/2020,389.42 ,Unrestricted-Martin Campus,Materials and Supplies - MS
Shelton State CC,78949,Tuscaloosa's One Place ,12/18/2020,300.00 ,Unrestricted Shared Services,Materials and Supplies - MS
Shelton State CC,78950,Uline Inc ,12/18/2020,926.21 ,Unrestricted Shared Services,Materials and Supplies - MS
Shelton State CC,78951,Unifirst Corporation ,12/18/2020,"3,353.24 ",Unrestricted Shared Services,Materials and Supplies - MS
Shelton State CC,78952,United Parcel Serv ,12/18/2020,105.67 ,Unrestricted Shared Services,Freight - OOS
Shelton State CC,78953,United Way Of West Alabama ,12/18/2020,40.00 ,Unrestricted Shared Services,Registration Fees- IS
Shelton State CC,78954,Varsity Brands Holding Co. Inc. ,12/18/2020,"3,580.99 ",Unrestricted-Martin Campus,Materials and Supplies - MS
Shelton State CC,78955,W W Grainger Inc ,12/18/2020,382.50 ,Unrestricted-Martin Campus,Materials and Supplies - MS
Shelton State CC,78956,Wagner's Team Sports ,12/18/2020,"1,430.00 ",Unrestricted-Martin Campus,Materials and Supplies - MS
Shelton State CC,78957,Watchdog Document Services ,12/18/2020,11.00 ,Unrestricted-Martin Campus,Materials and Supplies - MS
Shelton State CC,78957,Watchdog Document Services ,12/18/2020,22.00 ,Unrestricted-Fredd Campus,Materials and Supplies - MS
Shelton State CC,78957,Watchdog Document Services ,12/18/2020,253.00 ,Unrestricted Shared Services,Materials and Supplies - MS
Shelton State CC,78958,WESCO Distribution Inc. ,12/18/2020,36.69 ,Unrestricted-Fredd Campus,Materials and Supplies - MS
Shelton State CC,78959,WEX Bank ,12/18/2020,14.27 ,Unrestricted-Martin Campus,Materials and Supplies - MS
Shelton State CC,78959,WEX Bank ,12/18/2020,77.32 ,Unrestricted Shared Services,Materials and Supplies - MS
Shelton State CC,78959,WEX Bank ,12/18/2020,464.81 ,Unrestricted Shared Services,Gasoline & Oil - Motor Veh - OOS
Shelton State CC,78959,WEX Bank ,12/18/2020,"2,162.81 ",Unrestricted-Martin Campus,Gasoline & Oil - Motor Veh - OOS
Shelton State CC,78960,Windstream ,12/18/2020,"1,528.71 ",Unrestricted Shared Services,Landline Phones - UC
Shelton State CC,78961,Wittichen Sup Co ,12/18/2020,14.95 ,Unrestricted-Martin Campus,Maintenance & Repairs  - OOS
Shelton State CC,78961,Wittichen Sup Co ,12/18/2020,82.77 ,Unrestricted-Martin Campus,Materials and Supplies - MS
Shelton State CC,78961,Wittichen Sup Co ,12/18/2020,651.41 ,Renewal & Replacement-Martin Campus,Maintenance & Repairs  - OOS
Shelton State CC,78962,WorkZone LLC ,12/18/2020,"4,980.00 ",Unrestricted Shared Services,Computer Software(non capital) - MS
Shelton State CC,78963,Xerox Corporation ,12/18/2020,6.69 ,Unrestricted-Fredd Campus,Short-Term Equipment Rentals - OOS
Shelton State CC,78963,Xerox Corporation ,12/18/2020,113.86 ,Title III B X9-X0,Short-Term Equipment Rentals - OOS
Shelton State CC,78963,Xerox Corporation ,12/18/2020,254.96 ,Unrestricted-Martin Campus,Miscellaneous - AR
Shelton State CC,78963,Xerox Corporation ,12/18/2020,457.95 ,AE-State Regular 2XX0-2XX1,Short-Term Equipment Rentals - OOS
Shelton State CC,78963,Xerox Corporation ,12/18/2020,673.99 ,Unrestricted-Martin Campus,Short-Term Equipment Rentals - OOS
Shelton State CC,78963,Xerox Corporation ,12/18/2020,"6,598.67 ",Unrestricted Shared Services,Short-Term Equipment Rentals - OOS
Shelton State CC,78968,Regions Bank ,12/21/2020,32.39 ,Unrestricted Shared Services,Materials and Supplies - MS
Shelton State CC,78968,Regions Bank ,12/21/2020,38.42 ,Ambassadors,Deposit Liabilities - AP
Shelton State CC,78968,Regions Bank ,12/21/2020,350.00 ,Unrestricted Shared Services,Advertising & Promotions - OOS
Shelton State CC,78968,Regions Bank ,12/21/2020,399.00 ,Unrestricted Shared Services,Subscriptions - OOS
Shelton State CC,78968,Regions Bank ,12/21/2020,440.00 ,Unrestricted-Fredd Campus,Dep Liab - Resp Thrpy Malpract Ins
Shelton State CC,78969,Clements Ben,12/21/2020,"3,500.00 ",Title III B X9-X0,Other Contractual Services - PS
Shelton State CC,78970,AA Workforce Testing ,12/22/2020,70.00 ,SNAP 2XX8-2XX9,Institutional Use - OOS
Shelton State CC,78971,Act ,12/22/2020,126.00 ,AE-State Regular 2XX0-2XX1,Other Contractual Services - PS
Shelton State CC,78972,Amazon.Com ,12/22/2020,(65.99),Unrestricted-Martin Campus,Materials and Supplies - MS
Shelton State CC,78972,Amazon.Com ,12/22/2020,113.58 ,Unrestricted Shared Services,Materials and Supplies - MS
Shelton State CC,78973,American Behavioral Benefits Managers LLC ,12/22/2020,823.05 ,Unrestricted Shared Services,Other Contractual Services - PS
Shelton State CC,78974,At&T Mobility ,12/22/2020,21.25 ,Unrestricted-Fredd Campus,Internet - UC
Shelton State CC,78974,At&T Mobility ,12/22/2020,203.70 ,Unrestricted-Martin Campus,Internet - UC
Shelton State CC,78974,At&T Mobility ,12/22/2020,946.82 ,Unrestricted Shared Services,Internet - UC
Shelton State CC,78975,Chamber of Commerce of West Alabama ,12/22/2020,60.00 ,Unrestricted Shared Services,Registration Fees- IS
Shelton State CC,78975,Chamber of Commerce of West Alabama ,12/22/2020,620.00 ,Title III B X9-X0,Registration Fees- IS
Shelton State CC,78976,Gym Service And Installation Co. ,12/22/2020,"3,150.00 ",Renewal & Replacement-Martin Campus,Maintenance & Repairs  - OOS
Shelton State CC,78977,Learning Labs Inc ,12/22/2020,100.00 ,Unrestricted Shared Services,Computer Software(non capital) - MS
Shelton State CC,78978,Nebraska Health Care Association ,12/22/2020,360.29 ,Unrestricted-Martin Campus,Materials and Supplies - MS
Shelton State CC,78979,Office Depot ,12/22/2020,59.09 ,Title III B X8-X9,Materials and Supplies - MS
Shelton State CC,78979,Office Depot ,12/22/2020,85.24 ,Unrestricted Shared Services,Materials and Supplies - MS
Shelton State CC,78979,Office Depot ,12/22/2020,101.19 ,Unrestricted-Fredd Campus,Materials and Supplies - MS
Shelton State CC,78980,Wittichen Sup Co ,12/22/2020,"3,599.63 ",Renewal & Replacement-Martin Campus,Maintenance & Repairs  - OOS
